Cogmind - Beta 16.1 @@@ ROGUE MODE // 2026.01.21 @ 00:24:03 Player: Terminus Result: Establishing 0b11! Performance ------------- Evolutions (9) 4500 Regions Visited (35) 7000 Robots Destroyed (638) 3190 Value Destroyed (32659) 32659 Prototype IDs (368) 7360 Alien Tech Used (10) 2000 Bonus (62496) 62496 TOTAL SCORE: 119205 Bonus ------- High Alert Combat Kills 7212 Follower Combat Kills 3057 Hunted by Unchained 1000 Destroyed Unchained 1000 Network Hubs Disabled 200 Met Data Miner 300 Met Zhirov 300 Built Enhanced Grunts 300 Met R17 at Cetus 500 Found Hidden Lab 3000 Met R17 at Research 2000 Scanned by Researcher 500 Recovered Sigix Corpse 2000 Destroyed MAIN.C Guards 500 Met MAIN.C 5000 Destroyed MAIN.C Shell 5000 Destroyed MAIN.C 10000 Met Architect 300 Destroyed A8 300 Destroyed A6 400 Destroyed A5 500 Destroyed A4 700 Destroyed A3 800 Destroyed A2 1000 Destroyed Architect 15000 Win 3000 Friendly Fire -1373 Cogmind --------- Core Integrity 725/1600 Matter 284/300 Energy 948/960 System Corruption 3% Temperature Cool (6) Movement Walking (110) Location 0b11 Command Parts ------- > --- POWER (4) -------- Zero-point Reactor Vortex Chain Reactor Concept Zero-point Core > --- PROPULSION (7) --- High-density Centrium Leg Experimental Biometal Leg Experimental Biometal Leg Experimental Armored Exoskeleton > --- UTILITY (12) ----- Concept Thermoelectric Network Concept Antigrav Storage Unit Experimental Targeting Computer Experimental Targeting Computer Experimental Targeting Computer Concept Core Analysis Suite Concept Core Analysis Suite Quantum Capacitor Experimental Phase Shifter Experimental Weapon Shielding Advanced Force Field > --- WEAPON (3) ------- Modified Sigix Sheargun Concept Plasma Driver Concept Helical Railcannon > --- INVENTORY (25) --- Zero-point Reactor Concept Zero-point Core High-density Centrium Leg Experimental Biometal Leg 2N-1CE's Frost Array Concept Thermoelectric Network Concept Chromion Battery (800) Concept Chromion Battery (800) Concept NT7 Matterbank (750) Quantum Capacitor Experimental Weapon Cycler Experimental Weapon Cycler Centrium Medium Armor Plating Centrium Linked Plating Heavy Regenerative Plating Advanced Force Field Architect God Chip D Concept Impact Drone Bay (0/6) Long-range Gatling Laser Compact HERF Cannon Concept Helical Railcannon Sigix Corpse Peak State ------------ > --- POWER ------------ Experimental Antimatter Reactor Experimental Antimatter Reactor Concept Zero-point Core Concept Zero-point Core > --- PROPULSION ------- Experimental VSS Leg Experimental Armored Exoskeleton Concept Biometal Exoskeleton > --- UTILITY ---------- Advanced Cooling System Concept Thermoelectric Network Concept Antigrav Storage Unit Concept Core Analysis Suite Experimental Weapon Cycler Advanced Phase Shifter Concept Cloak Mesh DW-4LL's Blast Wall Experimental Force Field > --- WEAPON ----------- Concept Plasma Driver Concept Plasma Driver Concept Plasma Driver > --- INVENTORY -------- Light Quantum Reactor Reinforced Quantum Reactor Concept Zero-point Core Heavy Shield Leg Experimental Armored Exoskeleton 2N-1CE's Frost Array Concept Thermoelectric Network Concept Chromion Battery Concept Chromion Battery Concept NT7 Matterbank Concept Core Analysis Suite Experimental Weapon Cycler Centrium Medium Armor Plating Centrium Medium Armor Plating Advanced Force Field Concept Impact Drone Bay Concept Impact Drone Bay High-powered Transdimensional Reconstructor Concept Helical Railcannon Concept Helical Railcannon Concept Helical Railcannon [Rating: 311] Favorites ----------- Power Concept Zero-point Core Engine Improved Ion Engine Power Core Concept Zero-point Core Reactor Experimental Antimatter Reactor Propulsion Combat Airjet Treads Light Treads Leg Experimental Armored Exoskeleton Wheel Wheel Hover Unit Combat Airjet Utility Experimental Targeting Computer Device Concept Thermoelectric Network Storage Large Storage Unit Processor Experimental Targeting Computer Hackware Ghost Barrier Protection Centrium Medium Armor Plating Weapon Assault Rifle Energy Gun Advanced Beam Rifle Energy Cannon Concept Plasma Driver Ballistic Gun Assault Rifle Ballistic Cannon Concept Helical Railcannon Launcher Tiamat Missile Launcher Special Weapon Remote Datajack Impact Weapon Hammer Slashing Weapon Great Axe Piercing Weapon Heavy Pick Build | -11 -10 -10 -9 -9 -8 -7 -7 -7 -7 -6 -6 -6 -6 -6 -6 -6 -6 -5 -5 -5 -5 -5 -5 -4 -4 -4 -4 -3 -3 -3 -2 -2 -1 -1 -1 ------- Run | Yrd Mat Min Mat Min Mat Fac Low Low Dat Pro Fac Was Fac Ext Cet Arc Hub Fac Was Fac Upp Upp Zhi Pro Fac Arm Lab Res Qua Frg Res Tes Acc Com Ac0 Slots Evolved 18 | . . . 2 . 2 2 . . . . 2 . . . . . . 2 . . . . . . 2 . . 2 . . 2 . 2 . . Power 2 | . . . . . . . . . . . . . . . . . . . . . . . . . . . . . . . 1 . 1 . . Propulsion 5 | . . . . . 1 1 . . . . . . . . . . . 1 . . . . . . 1 . . 1 . . . . . . . Utility 10 | . . . 1 . 1 1 . . . . 2 . . . . . . 1 . . . . . . 1 . . 1 . . 1 . 1 . . Weapon 1 | . . . 1 . . . . . . . . . . . . . . . . . . . . . . . . . . . . . . . . Parts Attached 306 | 6 9 . 27 2 30 26 3 1 1 . 12 2 5 3 4 1 1 2 5 6 . 1 2 1 8 16 2 13 11 40 4 7 11 27 17 Power 38 | 1 2 . 3 . 3 2 . . . . . . . 1 . . . . 1 . . . . . 2 3 1 4 2 5 2 . 1 4 1 Engine 9 | 1 2 . 3 . 2 1 . . . . . . . . . . . . . . . . . . . . . . . . . . . . . Core 7 | . . . . . 1 1 . . . . . . . 1 . . . . . . . . . . . 1 1 . . 1 1 . . . . Reactor 22 | . . . . . . . . . . . . . . . . . . . 1 . . . . . 2 2 . 4 2 4 1 . 1 4 1 Propulsion 58 | 2 1 . 6 . 13 6 . . . . 2 . . . 1 . . 1 . . . 1 1 . 2 6 . 3 1 6 . . . 2 4 Treads 21 | 2 1 . 6 . 11 . . . . . . . . . . . . . . . . . . . . . . . . . . . . 1 . Leg 10 | . . . . . . . . . . . . . . . . . . . . . . . . . . . . . . 5 . . . 1 4 Wheel 1 | . . . . . 1 . . . . . . . . . . . . . . . . . . . . . . . . . . . . . . Hover 26 | . . . . . 1 6 . . . . 2 . . . 1 . . 1 . . . 1 1 . 2 6 . 3 1 1 . . . . . Flight . | . . . . . . . . . . . . . . . . . . . . . . . . . . . . . . . . . . . . Utility 133 | 1 4 . 4 1 7 7 1 . 1 . 7 2 3 1 3 . 1 1 4 2 . . . 1 4 3 1 5 6 22 1 4 9 18 9 Device 72 | . 1 . . . 2 4 1 . 1 . 3 1 1 . 2 . . 1 3 2 . . . . 3 2 1 2 6 12 . 4 6 11 3 Storage 8 | 1 2 . . . . 1 . . . . . . . 1 . . . . . . . . . . . . . 1 . 2 . . . . . Processor 19 | . 1 . 1 . . 1 . . . . 1 . 2 . . . . . . . . . . . 1 1 . . . 2 . . 2 5 2 Hackware 8 | . . . . . . 1 . . . . 2 . . . . . . . . . . . . 1 . . . 1 . . 1 . . . 2 Protection 26 | . . . 3 1 5 . . . . . 1 1 . . 1 . 1 . 1 . . . . . . . . 1 . 6 . . 1 2 2 Artifact . | . . . . . . . . . . . . . . . . . . . . . . . . . . . . . . . . . . . . Weapon 77 | 2 2 . 14 1 7 11 2 1 . . 3 . 2 1 . 1 . . . 4 . . 1 . . 4 . 1 2 7 1 3 1 3 3 Energy Gun 33 | . . . 8 . 4 5 . . . . 2 . 2 . . 1 . . . 2 . . 1 . . 2 . . . 2 . 2 . . 2 Energy Cannon 14 | . . . . . . 1 1 . . . . . . 1 . . . . . 1 . . . . . 1 . 1 2 4 1 . . . 1 Ballistic Gun 13 | 2 2 . 4 1 2 . . . . . . . . . . . . . . . . . . . . . . . . . . . . 2 . Ballistic Cannon 3 | . . . . . . . . . . . . . . . . . . . . . . . . . . . . . . . . 1 1 1 . Launcher 5 | . . . 1 . 1 1 . . . . . . . . . . . . . 1 . . . . . 1 . . . . . . . . . Special Weapon 2 | . . . . . . 1 . . . . 1 . . . . . . . . . . . . . . . . . . . . . . . . Impact Weapon 2 | . . . 1 . . . . . . . . . . . . . . . . . . . . . . . . . . 1 . . . . . Slashing Weapon 3 | . . . . . . 3 . . . . . . . . . . . . . . . . . . . . . . . . . . . . . Piercing Weapon 2 | . . . . . . . 1 1 . . . . . . . . . . . . . . . . . . . . . . . . . . . Special Melee Weapon . | . . . . . . . . . . . . . . . . . . . . . . . . . . . . . . . . . . . . Unidentified Prototypes 62 | . . . 3 . 3 5 . . . . 3 . . 1 2 . . . 2 1 1 . 2 . . 4 3 3 4 10 . 4 1 5 5 Corrupted Parts 1 | . . . . . . . . . . . . . . . . . . . . . . . . . . . . . . . . . . . 1 System Corruption 3 | . . . . . . . . . . . . . . . . . . . . . . . . . . . . . . . . . . . 3 Parts Lost 50 | . 2 . 3 1 6 1 . . 1 2 1 . . . . . . . 1 . 1 . . . . 4 . . . 7 . . 9 3 8 Power 6 | . . . . . 2 . . . . . . . . . . . . . . . . . . . . 1 . . . 1 . . . 1 1 Propulsion 8 | . . . 1 . 2 1 . . . . . . . . . . . . . . . . . . . 1 . . . 1 . . . . 2 Utility 26 | . . . 1 . 1 . . . . 1 1 . . . . . . . 1 . 1 . . . . 2 . . . 5 . . 8 2 3 Weapon 10 | . 2 . 1 1 1 . . . 1 1 . . . . . . . . . . . . . . . . . . . . . . 1 . 2 Highest Loss Streak 8 | . 2 . 1 1 2 1 . . 1 2 1 . . . . . . . 1 . 1 . . . . 2 . . . 2 . . 8 2 2 To Critical Strikes 3 | . . . . . . . . . . . . . . . . . . . . . . . . . . . . . . . . . . . 3 Average Backups 18 | . 14 24 23 23 23 14 15 15 14 14 13 15 14 15 15 15 15 14 14 15 14 14 14 15 14 14 14 14 14 17 21 21 21 20 21 Power 1 | . . 1 1 1 . 1 1 1 1 1 . 1 1 1 1 1 1 1 1 1 1 1 1 1 1 1 1 1 1 2 2 2 1 2 2 Propulsion 2 | . . 1 2 3 4 1 2 2 2 2 2 3 3 3 3 3 3 3 3 3 3 2 2 2 1 1 2 . 1 1 1 1 1 2 1 Utility 8 | . 2 6 8 10 9 5 6 7 7 8 6 7 6 5 5 5 5 4 4 5 4 5 5 5 5 6 5 7 6 8 12 13 13 10 13 Weapon 6 | . 10 16 11 8 8 5 5 5 4 3 3 4 4 5 6 6 6 6 6 6 6 6 5 5 5 5 4 4 3 3 4 4 3 3 2 Tool/Special . | . . . . . . . . . . . . . . . . . . . . . . . . . . . . . . . . . . . . Unused Backups 97 | . 4 2 18 3 19 7 2 . 1 . 1 . 2 . 4 . . . 1 1 . . . 1 1 1 1 . 2 7 . 2 1 4 12 Power 6 | . . . 1 . 2 1 . . . . . . . . . . . . . . . . . . . . . . . . . . . 1 1 Propulsion 15 | . . . 4 1 1 . . . . . 1 . . . . . . . . . . . . 1 1 . . . . 3 . . . 1 2 Utility 47 | . 1 . 7 . 7 3 2 . 1 . . . 2 . 4 . . . 1 . . . . . . 1 1 . 1 3 . 2 1 2 8 Weapon 28 | . 3 2 6 2 9 3 . . . . . . . . . . . . . 1 . . . . . . . . . 1 . . . . 1 Tool/Special 1 | . . . . . . . . . . . . . . . . . . . . . . . . . . . . . 1 . . . . . . Average Slot Usage (%) 92 | . 90 100 99 100 99 99 99 100 100 99 97 100 100 100 99 93 93 93 93 94 92 92 78 94 99 99 99 99 97 86 82 82 76 76 78 Engine 3 | . 14 14 11 11 5 . . . . . 2 . . . . . . . . . . . . . 4 2 . . . . . . . . . Core 3 | . . . . . 3 7 7 7 7 7 3 6 6 6 6 6 6 5 5 5 5 5 5 5 . 2 6 1 . 1 8 8 6 5 3 Reactor 2 | . . . . . . . . . . . . . . . . . . . . . . . . . 4 5 3 7 8 4 4 4 6 6 7 Treads 9 | . 27 28 22 22 26 . . . . . . . . . . . . . . . . . . . . . . . . . . . . . . Leg 3 | . . . . . . . . . . . . . . . . . . . . . . . . . . . . . . 6 12 12 10 9 13 Hover 10 | . . . . . . 29 30 30 30 30 26 26 26 26 25 20 20 22 23 23 22 25 27 27 30 30 30 30 30 15 . . . . . Device 10 | . . . 2 . 8 7 6 7 7 7 12 12 8 6 6 6 6 5 4 5 8 11 11 8 9 10 9 8 10 20 20 20 20 20 17 Storage 6 | . 14 14 11 11 9 7 7 7 7 7 6 6 6 6 6 6 6 5 5 5 5 5 5 5 5 5 5 4 4 4 4 4 3 3 3 Processor 12 | . 4 14 11 11 9 14 15 15 15 14 12 13 17 20 20 20 20 17 17 17 16 16 16 16 15 14 15 13 13 9 8 8 8 9 18 Hackware 3 | . . . . . . 6 7 7 7 7 13 13 13 13 13 13 13 11 11 11 6 5 5 8 10 10 10 12 11 1 3 4 . . . Protection 4 | . . . 8 11 8 . . . . . . . . . . . . 4 5 5 5 5 5 5 5 5 5 3 3 7 8 7 4 4 1 Energy Gun 8 | . . . 7 . 23 17 14 19 15 14 9 17 20 16 13 16 18 11 17 15 16 15 1 12 12 12 10 8 1 1 . . . . 1 Energy Cannon 3 | . . . . . . . 1 2 . 6 3 1 . 3 6 3 1 4 . 1 . . . 3 2 2 5 4 11 11 12 10 5 5 4 Ballistic Gun 6 | . 28 28 25 33 3 . . . . . . . . . . . . . . . . . . . . . . . . . . . . . . Peak Build Rating 311 | 7 12 12 22 18 42 55 55 55 58 57 79 83 83 86 93 89 94 103 110 105 105 98 95 98 120 146 149 171 194 269 292 293 306 311 302 Average Rating 122 | 5 9 12 16 17 34 52 53 54 55 56 74 79 81 82 82 87 87 100 102 102 98 94 82 97 116 130 143 165 176 223 289 290 294 301 288 On Entrance 107 | . 7 12 12 17 18 40 54 54 55 54 51 79 80 82 82 88 87 88 101 102 104 98 93 95 98 120 143 145 171 193 265 292 292 304 302 Avg Prop Armor Cover (%) 7 | 29 . . . . 8 . . . . . . . . . . . . . . . . . 2 . . . . 1 . . . . . 4 . Naked Turns . | . . . . . . . . . . . . . . . . . . . . . . . . . . . . . . . . . . . . Heaviest Build 228 | 12 89 89 100 100 103 115 41 41 37 43 50 59 43 47 48 48 47 54 52 56 58 57 52 58 67 68 70 93 102 149 147 147 223 228 171 Greatest Support 190 | 40 40 40 40 40 69 47 47 47 47 47 49 49 49 49 52 52 52 60 60 60 60 62 62 58 73 78 78 95 106 186 184 184 184 190 190 Greatest Overweight (x) 10 | 1 2 2 2 2 10 2 . . . . 1 1 . . . . . 1 . . . . . . . . . . 1 2 . . 1 7 . Average Overweight (x) . | . 1 2 2 2 1 . . . . . . . . . . . . . . . . . . . . . . . . . . . . . . Largest Inventory Capacity 25 | 8 25 25 25 25 25 25 15 15 15 15 15 15 15 15 15 15 15 15 15 15 15 15 15 15 15 15 15 15 15 25 25 25 25 25 25 Average Capacity 20 | 6 21 25 25 25 25 15 15 15 15 15 15 15 15 15 15 15 15 15 15 15 15 15 15 15 15 15 15 15 15 20 25 25 25 25 25 Most Carried 25 | 2 25 25 25 25 25 24 15 15 15 15 15 15 15 15 15 15 15 15 15 15 15 15 15 15 15 15 15 15 15 25 25 25 25 25 25 Average Carried 20 | 1 15 24 24 24 24 14 15 14 14 14 13 15 14 14 14 15 15 14 14 15 14 14 14 14 14 14 14 14 14 19 24 24 24 24 23 Final Capacity 25 | 8 25 25 25 25 25 15 15 15 15 15 15 15 15 15 15 15 15 15 15 15 15 15 15 15 15 15 15 15 15 25 25 25 25 25 25 Final Carried 25 | 2 25 25 25 25 25 15 15 15 15 14 15 15 15 15 15 15 15 15 15 15 15 15 15 15 15 14 15 15 15 25 25 25 25 25 24 Class Distribution -------------------- 22% | Gunner 18% | Hacker-Gunner 15% | Mutant 13% | Generator-Gunner 6% | Hacker-Tank 3% | Scavenger-Tank 3% | Skirmisher Dominant Class ---------------- Mutant | -10/Materials Mutant | -10/Mines Gunner | -9/Materials Gunner | -9/Mines Gunner | -8/Materials Mutant | -7/Factory Mutant | -7/Lower Caves Skirmisher | -7/Lower Caves Mutant | -7/Data Miner Skirmisher | -6/Proximity Caves Hacker-Mutant | -6/Factory Hacker-Skirmisher | -6/Waste Hacker-Gunner | -6/Factory Hacker-Gunner | -6/Extension Hacker-Gunner | -6/Cetus Hacker-Gunner | -6/Archives Hacker-Gunner | -6/Hub_04(d) Hacker-Gunner | -5/Factory Hacker-Gunner | -5/Waste Hacker-Gunner | -5/Factory Hacker-Gunner | -5/Upper Caves Hacker-Gunner | -5/Upper Caves Hacker-Mutant | -5/Zhirov Scavenger-Gunner | -4/Proximity Caves Hacker-Gunner | -4/Factory Hacker-Scout | -4/Armory Hacker-Gunner | -4/Lab Hacker-Scout | -3/Research Hacker-Gunner | -3/Quarantine Scavenger-Tank | -3/Protoforge Hacker-Tank | -2/Research Hacker-Tank | -2/Testing Generator-Gunner | -1/Access Generator-Gunner | -1/Command Generator-Gunner | -1/Access_0 Resources | -11 -10 -10 -9 -9 -8 -7 -7 -7 -7 -6 -6 -6 -6 -6 -6 -6 -6 -5 -5 -5 -5 -5 -5 -4 -4 -4 -4 -3 -3 -3 -2 -2 -1 -1 -1 ----------- Run | Yrd Mat Min Mat Min Mat Fac Low Low Dat Pro Fac Was Fac Ext Cet Arc Hub Fac Was Fac Upp Upp Zhi Pro Fac Arm Lab Res Qua Frg Res Tes Acc Com Ac0 Matter Collected 11424 | 194 777 73 1167 124 834 538 244 60 20 55 331 87 70 56 99 30 67 194 90 164 207 79 . 159 290 758 . 275 224 1473 60 159 330 1966 170 Remotely 171 | . . . . . . . . . . . . . . . . . . . . . . . . . . . . . . 171 . . . . . Salvage Created 36172 | . 933 43 2232 193 3042 931 262 73 29 60 613 243 413 349 264 122 611 209 . 914 249 131 . 39 335 1301 . 1189 1110 4594 1374 3952 2645 4307 3410 Parts 1542 | . 50 6 145 19 146 59 9 4 2 1 25 2 9 16 16 4 22 5 . 29 10 6 . 3 11 39 . 43 39 221 69 161 96 134 141 Haulers Intercepted 27 | . 2 . 6 . 6 3 1 . . . 1 . . 1 . . 1 . . 1 . . . . . . . 2 . . 1 2 . . . Recyclers Shooed 10 | . 3 2 1 . 2 . . . . . . . 1 . . . . . . . . . . . . . . . . . . . 1 . . Parts Field Recycled . | . . . . . . . . . . . . . . . . . . . . . . . . . . . . . . . . . . . . Retrieved Matter . | . . . . . . . . . . . . . . . . . . . . . . . . . . . . . . . . . . . . Parts Self-Destructed 26 | . . . . . . . 9 4 . 1 . . . . . . . . . . 7 5 . . . . . . . . . . . . . Prevented . | . . . . . . . . . . . . . . . . . . . . . . . . . . . . . . . . . . . . Parts Restored 11 | . . . . . . . . . . . . . . . . . . . . . . . . . . . . . . 11 . . . . . Faulty 11 | . . . . . . . . . . . . . . . . . . . . . . . . . . . . . . 11 . . . . . Kills | -11 -10 -10 -9 -9 -8 -7 -7 -7 -7 -6 -6 -6 -6 -6 -6 -6 -6 -5 -5 -5 -5 -5 -5 -4 -4 -4 -4 -3 -3 -3 -2 -2 -1 -1 -1 ------- Run | Yrd Mat Min Mat Min Mat Fac Low Low Dat Pro Fac Was Fac Ext Cet Arc Hub Fac Was Fac Upp Upp Zhi Pro Fac Arm Lab Res Qua Frg Res Tes Acc Com Ac0 Combat Hostiles Destroyed 438 | . 16 3 35 11 41 14 8 3 . 1 7 . 1 3 2 2 4 5 . 12 9 4 . . 3 31 . 8 10 65 10 42 25 28 35 Guns 155 | . 16 3 31 11 35 12 3 3 . 1 1 . 1 3 . 2 4 4 . 9 . . . . 2 10 . 3 . 1 . . . . . Cannons 154 | . . . . . . . . . . . 1 . . . . . . . . . . . . . . 2 . 3 9 39 7 36 19 20 18 AOE 50 | . . . 2 . 5 2 5 . . . 3 . . . . . . 1 . . 9 4 . . . 14 . . . 5 . . . . . Classes Destroyed 30 | . 7 . 3 . 4 1 . . . . . . . . . . 1 1 . . 1 . . . . 1 . . 1 7 . 2 1 . . Worker 36 | . . . 4 . 6 1 . . . . . . . . . . 1 . . 2 . . . . 1 . . 3 . 2 6 3 4 3 . Builder 32 | . . . . . 1 1 . . . . 1 . . 3 . . 3 . . . . . . . . . . 2 . . 8 6 7 . . Tunneler 7 | . 1 . . 1 1 1 . . . . . . . 1 . . . . . . . . . . . . . 2 . . . . . . . Hauler 27 | . 2 . 6 . 6 3 1 . . . 1 . . 1 . . 1 . . 1 . . . . . . . 2 . . 1 2 . . . Recycler 29 | . 3 . 5 . 7 1 . . . . 2 . 3 . . . 1 . . . . . . . . . . 1 . . 1 . 2 3 . Carrier 3 | . . . . . . . . . . . . . . . . . . . . . . . . . . . . . . . . 2 . 1 . Mechanic 3 | . . . 1 . 1 . . . . . . . . . . . . . . . . . . . . . . 1 . . . . . . . Operator 14 | . 1 . 3 . 3 1 . . . . . . . . . . 2 . . 1 . . . . . . . 1 . . . . 2 . . Drone 11 | . . . . . . . . . . . . . . . . . . . . . . . . . . . . . . 8 . . . . 3 Watcher 39 | . 3 . 5 . 5 1 . . . . . . . 2 1 . 1 . . 1 . . . . 4 2 . 3 3 1 2 3 2 . . Swarmer 72 | . 6 3 9 11 7 5 3 3 . . 3 . . . . . 2 1 . . 9 . . . . 5 . . . . . 5 . . . Cutter 3 | . . . . . . . . . . . . . . . . . . . . . . . . . . . . . . . 3 . . . . Saboteur 7 | . . . . . . . . . . . . . . . . . . . . . . . . . . 5 . . . . . 1 1 . . Grunt 116 | . 10 . 18 . 15 3 5 . . . . . . 1 . . . 2 . 9 . 4 . . . 5 . 3 2 6 2 13 13 5 . Brawler 7 | . . . . . . . . . . . . . . . . . . . . . . . . . . . . . . 1 . 4 1 1 . Duelist 10 | . . . . . 2 1 . . . . . . . . . . . . . 1 . . . . . 1 . . . 1 . 1 2 1 . Protector 3 | . . . . . . . . . . . . . . . . . . . . . . . . . . . . . . . . 2 . 1 . Researcher 7 | . . . . . . . . . . . . . . . . . . . . . . . . . . . . . . 4 . 3 . . . Sentry 50 | . . . 8 . 7 2 . . . . 3 . 1 2 . 2 . 1 . 1 . . . . 1 6 . 2 . 10 1 . 2 1 . Specialist 10 | . . . . . 6 . . . . . . . . . . . . . . . . . . . . 2 . . . . . 2 . . . Hunter 25 | . . . . . 4 . . . . 1 . . . . . . . . . . . . . . . 2 . 2 5 . 2 2 3 4 . Programmer 49 | . . . . . . 3 . . . . 1 . . . . . 1 . . . . . . . 2 5 . . 2 15 . 12 . 8 . Heavy 4 | . . . . . . . . . . . . . . . . . 1 . . 1 . . . . . . . . . . 2 . . . . Q-Series 2 | . . . . . . . . . . . . . . . . . . . . . . . . . . . . . . . . . 2 . . Behemoth 3 | . . . . . . . . . . . . . . . . . . 1 . . . . . . . . . 1 . . . . . 1 . Cetus Guard 2 | . . . . . . . . . . . . . . . 2 . . . . . . . . . . . . . . . . . . . . M Guard 2 | . . . . . . . . . . . . . . . . . . . . . . . . . . . . . . . . . . 2 . Enhanced Grunt 18 | . . . . . . . . . . . . . . . . . 1 . . . . . . . . . . . . . . . . . 17 Enhanced Sentry 4 | . . . . . . . . . . . . . . . . . . . . . . . . . . . . . . . . . . . 4 Enhanced Hunter 7 | . . . . . . . . . . . . . . . . . . . . . . . . . . . . . . . . . . . 7 Hotshot 10 | . . . . . . . . . . . . . . . . . . . . . . . . . . . . . . 10 . . . . . Decapitator 6 | . . . . . . . . . . . . . . . . . . . . . . . . . . . . . . 6 . . . . . Immortal 4 | . . . . . . . . . . . . . . . . . . . . . . . . . . . . . . 4 . . . . . Combat Programmer 2 | . . . . . . . . . . . . . . . . . . . . . . . . . . . . . . . . . . 2 . Alpha 7 2 | . . . . . . . . . . . . . . . . . . . . . . . . . . . . . . 2 . . . . . Fortress 1 | . . . . . . . . . . . . . . . . . . . . . . . . . . . . . 1 . . . . . . V-Series 2 | . . . . . . . . . . . . . . . . . . . . . . . . . . . . . . 2 . . . . . Decomposer 2 | . . . . . . . . . . . . . . . . . . . . . . . . 2 . . . . . . . . . . . Packrat 1 | . . . . . . . . . . . . . . . . . . . . . 1 . . . . . . . . . . . . . . Samaritan 2 | . . . . . . . . . . . . . . . . . . . . . 2 . . . . . . . . . . . . . . Tinkerer 1 | . . . . . . . . . . . . . . . . . . . . . . . . . . . . . . 1 . . . . . Thug 1 | . . . . . . . . . . . . . . . . . . . . 1 . . . . . . . . . . . . . . . Best Kill Streak 31 | . 6 2 9 4 6 4 4 1 1 1 3 . 3 5 1 1 4 2 . 11 5 4 . . 2 7 . 10 4 7 17 12 31 5 4 Combat Bots Only 12 | . 4 2 7 4 4 4 4 1 . 1 3 . 1 2 1 1 2 2 . 10 5 4 . . 2 7 . 4 3 7 8 9 12 4 4 Max Kills in Single Turn 5 | . 1 1 3 2 3 2 1 1 1 1 2 . 1 2 1 1 3 1 . 2 4 2 . 1 1 4 . 3 1 2 5 3 2 2 2 Gunslinging 1 | . . . 1 1 . . . . . . . . . . . . . . . . . . . . . . . . . . . . . . . Exploded 4 | . . . 2 . 2 2 1 . . . 2 . . . . . . 1 . . 4 2 . . . 4 . . . 2 . . . . . Melee . | . . . . . . . . . . . . . . . . . . . . . . . . . . . . . . . . . . . . Uniques/NPCs Destroyed 12 | . . . . . . . . . 1 . . . . . 1 . . . . . . . . . . . . . . . . . 1 2 7 Data Miner (-7/Data Miner) A7 (-6/Cetus) DW-4LL (-1/Access) MAIN.C Shell (-1/Command) MAIN.C (-1/Command) A8 (-1/Access_0) A6 (-1/Access_0) A2 (-1/Access_0) A5 (-1/Access_0) Architect (-1/Access_0) A4 (-1/Access_0) A3 (-1/Access_0) Combat | -11 -10 -10 -9 -9 -8 -7 -7 -7 -7 -6 -6 -6 -6 -6 -6 -6 -6 -5 -5 -5 -5 -5 -5 -4 -4 -4 -4 -3 -3 -3 -2 -2 -1 -1 -1 -------- Run | Yrd Mat Min Mat Min Mat Fac Low Low Dat Pro Fac Was Fac Ext Cet Arc Hub Fac Was Fac Upp Upp Zhi Pro Fac Arm Lab Res Qua Frg Res Tes Acc Com Ac0 Hostile Shots Fired 2028 | . 87 11 109 21 176 45 15 6 6 32 76 . . 9 . . 2 . 1 14 18 5 . . 18 97 . 32 66 182 28 79 235 191 467 Missed 707 | . 23 . 31 5 53 24 3 4 2 12 37 . . 7 . . . . . 3 5 3 . . 8 49 . 11 26 42 12 23 65 66 193 Hits 1321 | . 64 11 78 16 123 21 12 2 4 20 39 . . 2 . . 2 . 1 11 13 2 . . 10 48 . 21 40 140 16 56 170 125 274 Melee 15 | . . . . . 3 . . . . . . . . . . . . . 1 . . . . . . . . . . 7 1 2 1 . . Projectile 1306 | . 64 11 78 16 120 21 12 2 4 20 39 . . 2 . . 2 . . 11 13 2 . . 10 48 . 21 40 133 15 54 169 125 274 AOE 14 | . . . . . . . . . . . . . . . . . . . . . . . . . . 3 . . . 1 . . . 10 . Critical Strikes 80 | . 2 . 1 . 3 1 1 . . . . . . . . . . . . . . . . . . 3 . 1 1 21 1 4 7 7 27 Actively Blocked 3 | . . . . . . . . . . . . . . . . . . . . . . . . . . . . . . 3 . . . . . Part Disruptions 28 | . . . . . . 1 . . . . . . . . . . . . . . . . . . . 14 . . 1 2 . 2 . 5 3 Damage Taken 22368 | . 878 84 998 125 1795 344 157 30 185 521 348 . 35 121 . . 187 . 39 236 229 39 . . 234 920 . 504 748 3488 343 720 2506 2508 4046 Core 2274 | . 145 . 107 . 157 33 29 17 . 148 54 . . . . . . . 39 60 . 19 . . . 190 . 114 44 346 9 39 105 53 566 Absorbed by Shields 10533 | . . . . . . . . . . . . . . . . . . . . . . . . . . . . . . 1166 333 694 1900 2266 4174 Reduced by Siege Mode 53 | . . . . . . . . . . . . . . . . . . . . . . . . . . . . . . . . . . 53 . Redirected to Shielding 445 | . . . . . . . . . . . . . . . . . . . . . . . . . . . . . . 439 . . . . 6 Ignored by Resistances 629 | . . . . . . . . . . . . . . . . . . . . . . . . . . . . . . . . . . 629 . Regen/Repaired (Parts) 3347 | . 229 . 35 . 60 52 . . . . 106 205 160 68 . . . 119 30 . . . . . . . . 616 543 . . 599 . 525 . Core Remaining (%) 75 | 100 . 42 . 73 71 . . . . 67 . . . . . . 93 . . . . . . 88 . . 100 . . 55 . 96 . . 45 Volleys Fired 1728 | . 79 14 101 11 141 32 13 7 . 41 32 4 9 18 27 4 18 9 3 30 9 5 . 14 34 74 5 40 60 239 25 101 97 108 324 Largest 3 | . 2 2 3 3 3 3 3 3 . 3 3 1 3 3 3 3 3 3 3 3 3 1 . 1 3 3 1 3 3 3 3 3 3 3 1 Hottest 420 | . 40 40 195 60 183 183 183 187 . 196 230 30 230 245 245 245 245 240 240 250 240 46 . 90 250 280 120 280 360 420 420 420 420 420 140 Shots Fired 3285 | . 158 28 301 33 408 83 20 17 . 49 50 4 27 41 29 12 40 23 9 76 15 5 . 14 66 142 5 84 116 380 59 206 178 283 324 Gun 1518 | . 158 28 300 33 401 81 11 10 . 8 29 . 27 33 2 10 32 22 9 68 9 . . . 46 99 . 42 9 35 . . . 15 1 Cannon 1723 | . . . . . . . 1 7 . 41 18 4 . 8 27 2 8 . . 8 1 . . 14 20 35 5 42 107 341 59 206 178 268 323 Launcher 42 | . . . 1 . 7 1 8 . . . 2 . . . . . . 1 . . 5 5 . . . 8 . . . 4 . . . . . Special 2 | . . . . . . 1 . . . . 1 . . . . . . . . . . . . . . . . . . . . . . . . Kinetic 702 | . 158 28 240 33 134 . . . . . . . . . . . . . . . . . . . . . . . . . . 2 22 85 . Thermal 2459 | . . . 21 . 267 81 12 17 . 49 47 4 27 41 29 12 40 22 9 76 10 . . 14 66 134 5 84 116 341 59 204 156 198 318 Explosive 42 | . . . 1 . 7 1 8 . . . 2 . . . . . . 1 . . 5 5 . . . 8 . . . 4 . . . . . Electromagnetic 79 | . . . 39 . . . . . . . . . . . . . . . . . . . . . . . . . . 35 . . . . 5 Slashing 1 | . . . . . . . . . . . . . . . . . . . . . . . . . . . . . . . . . . . 1 Robot Hit Streak 32 | . 7 10 24 5 17 5 5 3 . 4 9 7 22 25 15 21 18 24 15 32 10 13 . 15 18 26 . 20 19 31 9 18 7 12 22 Robot Miss Streak 6 | . 2 3 4 2 4 6 1 3 . 1 1 1 2 3 5 1 3 1 1 2 1 . . . 5 4 . 6 3 4 3 4 3 4 3 Penetration Max 2 | . . . . . . . . . . . . . . . . . . . . . . . . . . . . . . 1 1 2 1 1 1 Secondary Targets 20 | . 1 . 4 5 3 . . . . . . . . 2 . . . . . 2 . . . . 1 2 . . . . . . . . . Max Gunslinging Chain 2 | . 1 . 1 2 1 . . . . . . . . 1 . . . . . 1 . . . . 1 1 . . . . . . . . . Capacitor 396 | . . . . . . . . . . . . . . . . . . . . . . . . . . . . . . . . 15 56 1 324 Shots Hit Robots 1930 | . 106 17 215 19 264 54 14 4 1 8 31 3 18 28 20 10 25 19 9 59 10 3 . 2 38 92 . 51 53 161 28 87 90 154 237 Core Hits 1189 | . 40 5 109 13 115 43 20 3 1 2 18 2 11 26 6 14 33 22 7 68 18 9 . 1 36 92 . 54 30 87 20 49 34 87 114 Critical Kills 62 | . . . . . . . . . . . . . . . 1 . . . . . . . . . . . . . 1 17 2 9 8 8 16 Critical Parts Destroyed 7 | . 1 1 1 . 1 . . . . . . . . . . . . . . . . . . . . . . . . . . . 1 2 . Critical Strikes 98 | . 1 1 1 . 15 5 2 . . . 5 . . 1 1 . . . . . . . . . . . . . 1 17 2 9 10 11 16 Burn 23 | . . . . . 14 4 1 . . . 3 . . 1 . . . . . . . . . . . . . . . . . . . . . Meltdown 62 | . . . . . . . . . . . . . . . 1 . . . . . . . . . . . . . 1 17 2 9 8 8 16 Destroy 9 | . 1 1 1 . 1 . . . . . . . . . . . . . . . . . . . . . . . . . . . 2 3 . Sever 1 | . . . . . . 1 . . . . . . . . . . . . . . . . . . . . . . . . . . . . . Impale 3 | . . . . . . . 1 . . . 2 . . . . . . . . . . . . . . . . . . . . . . . . Melee Attacks 81 | . . . 2 . . 36 11 1 17 1 13 . . . . . . . . . . . . . . . . . . . . . . . . Impact 2 | . . . 2 . . . . . . . . . . . . . . . . . . . . . . . . . . . . . . . . Slashing 36 | . . . . . . 36 . . . . . . . . . . . . . . . . . . . . . . . . . . . . . Piercing 43 | . . . . . . . 11 1 17 1 13 . . . . . . . . . . . . . . . . . . . . . . . . Sneak Attacks 11 | . . . . . . 6 . . 1 . 4 . . . . . . . . . . . . . . . . . . . . . . . . Combat Hostiles . | . . . . . . . . . . . . . . . . . . . . . . . . . . . . . . . . . . . . Follow-up Attacks . | . . . . . . . . . . . . . . . . . . . . . . . . . . . . . . . . . . . . Damage Inflicted 99067 | . 1472 263 3133 283 5260 1709 916 80 85 178 1173 80 429 809 663 322 1022 709 281 1640 1118 741 . 67 938 3853 . 1819 2234 13606 4310 10431 8577 12422 18444 Guns 21128 | . 1358 221 2953 256 4537 854 100 80 . 126 401 . 429 719 24 288 604 572 281 1640 237 . . . 938 2278 . 1040 279 615 . . . 298 . Cannons 69967 | . . . . . . . . . . 52 121 80 . 90 639 34 . . . . . . . 67 . 166 . 779 1955 12260 4283 10354 8577 12066 18444 Explosions 6228 | . 97 . 101 . 712 193 537 . . . 271 . . . . . 418 137 . . 881 741 . . . 1409 . . . 731 . . . . . Melee 1406 | . . . . . . 662 279 . 85 . 380 . . . . . . . . . . . . . . . . . . . . . . . . Ramming 338 | . 17 42 79 27 11 . . . . . . . . . . . . . . . . . . . . . . . . . 27 77 . 58 . Kinetic 9404 | . 1358 221 2211 256 1227 . . . . . . . . . . . . . . . . . . . . . . . . . . 190 706 3235 . Thermal 80489 | . . . 296 . 3310 854 100 80 . 178 522 80 429 809 663 322 604 572 281 1640 237 . . 67 938 2444 . 1819 2234 12260 4283 10164 7871 9129 18303 Explosive 5590 | . 97 . 7 . 712 67 537 . . . 271 . . . . . . 137 . . 881 741 . . . 1409 . . . 731 . . . . . Electromagnetic 1840 | . . . 540 . . 126 . . . . . . . . . . 418 . . . . . . . . . . . . 615 . . . . 141 Impact . | . . . . . . . . . . . . . . . . . . . . . . . . . . . . . . . . . . . . Slashing 662 | . . . . . . 662 . . . . . . . . . . . . . . . . . . . . . . . . . . . . . Piercing 744 | . . . . . . . 279 . 85 . 380 . . . . . . . . . . . . . . . . . . . . . . . . Highest Corruption 37 | . . . . . . . . . . 6 1 1 1 1 1 1 2 . . 5 5 5 5 5 1 4 4 1 3 20 . 6 21 37 3 Average Corruption 9 | . . . . . . . . . . 6 1 1 1 1 1 1 1 . . 4 5 5 5 5 1 2 4 1 2 15 . 4 19 28 3 Corruption Purged 37 | . . . . . . . . . . . . . . . . . . . . . . . . . . . . . . . . . . 37 . Corruption Blocked . | . . . . . . . . . . . . . . . . . . . . . . . . . . . . . . . . . . . . Effects 399 | . . . . . . . . . . 1 2 4 3 7 2 1 4 . . 10 8 3 4 2 . 7 2 2 20 125 . 20 16 131 25 Message Errors 70 | . . . . . . . . . . . 1 . 1 . 1 . 1 . . 2 1 . . . . . . 1 7 22 . 5 3 19 6 Matter Fused 82 | . . . . . . . . . . . . 2 1 3 1 1 . . . 4 2 1 . 1 . 2 1 1 2 17 . 4 2 34 3 Heat Flow Errors 49 | . . . . . . . . . . . . 1 . . . . . . . 1 1 1 2 . . 1 . . 3 17 . 5 1 14 2 Energy Discharges 57 | . . . . . . . . . . . 1 1 . . . . 1 . . . 2 . 1 1 . 2 . . 2 19 . 1 4 17 5 Parts Rejected 7 | . . . . . . . . . . . . . . . . . . . . 1 . . . . . . . . . 2 . . 1 2 1 Parts Fused 4 | . . . . . . . . . . . . . . . . . . . . . 1 . . . . . . . . 1 . . . 2 . Data Loss (minor) 51 | . . . . . . . . . . 1 . . . 3 . . 1 . . 2 1 1 . . . 1 1 . 3 17 . 2 . 13 5 Data Loss (major) 19 | . . . . . . . . . . . . . . . . . 1 . . . . . 1 . . . . . 1 8 . 2 . 3 3 Misfires 17 | . . . . . . . . . . . . . . 1 . . . . . . . . . . . . . . 1 7 . . 2 6 . Alerts 8 | . . . . . . . . . . . . . 1 . . . . . . . . . . . . 1 . . . 2 . 1 . 3 . Misdirections 3 | . . . . . . . . . . . . . . . . . . . . . . . . . . . . . . . . . . 3 . Weapon Failures 32 | . . . . . . . . . . . . . . . . . . . . . . . . . . . . . 1 13 . . 3 15 . Overload Shots 3 | . . . . . . . . . . 3 . . . . . . . . . . . . . . . . . . . . . . . . . Overflow Damage 5292 | . . . . 5 7 138 11 . . . . . . . 14 . 14 . . . 23 12 . 26 . 8 . . 78 1134 597 1118 969 719 419 Projectiles 5056 | . . . . . . . . . . . . . . . 14 . . . . . . . . 26 . . . . 78 1124 597 1110 969 719 419 Explosions 85 | . . . . . 7 . 11 . . . . . . . . . 14 . . . 23 12 . . . 8 . . . 10 . . . . . Melee 151 | . . . . 5 . 138 . . . . . . . . . . . . . . . . . . . . . . . . . 8 . . . Knockbacks 11 | . . . . . . . . . . . . . . . . . . . . . . . . . . . . . . . . . 4 7 . Impact . | . . . . . . . . . . . . . . . . . . . . . . . . . . . . . . . . . . . . Kinetic 11 | . . . . . . . . . . . . . . . . . . . . . . . . . . . . . . . . . 4 7 . Secondary . | . . . . . . . . . . . . . . . . . . . . . . . . . . . . . . . . . . . . Self-Inflicted Damage 520 | . 163 . . . 21 4 . . . . . . . . . . 93 . . . 26 . . . . . . . . 155 . . 58 . . Shots 9 | . 2 . . . 1 1 . . . . . . . . . . 1 . . . 1 . . . . . . . . 2 . . 1 . . Rammed 15 | . 4 4 5 . 2 . . . . . . . . . . . . . . . . . . . . . . . . . . . . . . Targets Rammed 24 | . 4 4 5 1 2 . . . . . . . . . . . . . . . . . . . . . . . . . 1 5 . 2 . Kicked 8 | . . . . . . . . . . . . . . . . . . . . . . . . . . . . . . . 1 5 . 2 . Crushed 1 | . . . . 1 . . . . . . . . . . . . . . . . . . . . . . . . . . . . . . . Highest Temperature 366 | . 20 . 315 9 366 291 93 229 . 280 187 228 332 288 242 168 318 170 256 256 268 241 113 . 174 265 9 316 336 217 206 206 203 203 183 Average Temperature 97 | . 4 . 34 3 112 74 36 81 . 57 84 116 143 74 110 83 95 73 113 77 104 129 67 . 57 48 5 108 83 87 107 129 141 130 124 Received Heat Transfer 2394 | . 336 . 351 . 531 45 9 . . 12 72 . . . . . . . . 78 . 18 . . 18 63 . 57 9 341 16 24 287 77 50 Thermoelectric Energy+ 26947 | . . . . . . . . . . . . . . . . . . . . . . . . . . . . . . 744 1238 5286 6412 9105 4162 Effects 16 | . . . 2 . 2 . . . . . . . 1 . . . . . . . . 1 . . . . . 3 . . 2 1 4 . . Shutdowns 2 | . . . . . 1 . . . . . . . . . . . . . . . . . . . . . . 1 . . . . . . . Energy Bleed 8 | . . . 2 . 1 . . . . . . . 1 . . . . . . . . . . . . . . 2 . . . 1 1 . . Interference 6 | . . . . . . . . . . . . . . . . . . . . . . 1 . . . . . . . . 2 . 3 . . Siege Activations 2 | . . . . . . . . . . . . . . . . . . . . . . . . . . . . . . . . . . 2 . Total Turns 607 | . . . . . . . . . . . . . . . . . . . . . . . . . . . . . . . . . . 607 . Longest Duration 556 | . . . . . . . . . . . . . . . . . . . . . . . . . . . . . . . . . . 556 . Martial Activations . | . . . . . . . . . . . . . . . . . . . . . . . . . . . . . . . . . . . . Shielding Activations . | . . . . . . . . . . . . . . . . . . . . . . . . . . . . . . . . . . . . Robots Disrupted . | . . . . . . . . . . . . . . . . . . . . . . . . . . . . . . . . . . . . Combat Hostiles . | . . . . . . . . . . . . . . . . . . . . . . . . . . . . . . . . . . . . Robots Corrupted 9 | . . . 2 . . . . . . . . . . . . . 1 . . . . . . . . . . . . 4 . 1 . . 1 Combat Hostiles 7 | . . . 2 . . . . . . . . . . . . . . . . . . . . . . . . . . 4 . . . . 1 Parts Fried 39 | . . . 3 2 . . . . . . . . . . . . 11 . . . . . . . . . . . . 9 . 2 . . 12 Impact Corruptions 2 | . . . . 1 . . . . . . . . . . . . . . . . . . . . . . . . . . . 1 . . . Robots Melted 79 | . . . . . 1 . . . . . 2 . . . 2 . . . . 3 1 . . . 1 5 . 2 1 17 3 9 8 8 16 Combat Hostiles 69 | . . . . . 1 . . . . . 2 . . . 2 . . . . 3 . . . . 1 5 . 2 1 13 3 6 6 8 16 Parts Melted 254 | . . . . . 17 1 . . . 2 9 . 1 1 2 . 5 6 . 13 . . . . 2 19 . 12 4 40 9 30 16 26 39 Heat Transferred 67344 | . . . 360 . 7067 1813 259 148 . 296 1242 111 909 1720 753 637 1375 1225 625 3675 550 . . 74 2025 4973 . 2997 2177 8333 2600 5725 4178 3985 7512 Parts Sabotaged . | . . . . . . . . . . . . . . . . . . . . . . . . . . . . . . . . . . . . Parts Stolen . | . . . . . . . . . . . . . . . . . . . . . . . . . . . . . . . . . . . . Parts Stripped . | . . . . . . . . . . . . . . . . . . . . . . . . . . . . . . . . . . . . Power Chain Reactions 2 | . . . 1 . . 1 . . . . . . . . . . . . . . . . . . . . . . . . . . . . . Alert | -11 -10 -10 -9 -9 -8 -7 -7 -7 -7 -6 -6 -6 -6 -6 -6 -6 -6 -5 -5 -5 -5 -5 -5 -4 -4 -4 -4 -3 -3 -3 -2 -2 -1 -1 -1 ------- Run | Yrd Mat Min Mat Min Mat Fac Low Low Dat Pro Fac Was Fac Ext Cet Arc Hub Fac Was Fac Upp Upp Zhi Pro Fac Arm Lab Res Qua Frg Res Tes Acc Com Ac0 Maximum Alert Level 5 | . 1 . 2 . 2 1 . . . . . . 1 2 1 1 2 2 . 2 . . . . . 3 . 1 . 5 4 4 4 4 . Low Security (%) 46 | 100 99 100 29 100 42 53 . . . . 100 100 33 17 65 55 27 17 100 38 . . . . 100 12 . 93 100 16 . . . . . Level 1 16 | . . . 19 . 39 46 . . . . . . 66 18 34 45 38 45 . 19 . . . . . 28 . 6 . 13 . . 2 . . Level 2 17 | . . . 50 . 18 . . . . . . . . 64 . . 34 36 . 42 . . . . . 51 . . . 14 . 31 64 . . Level 3 8 | . . . . . . . . . . . . . . . . . . . . . . . . . . 7 . . . 16 68 48 14 28 . Level 4 11 | . . . . . . . . . . . . . . . . . . . . . . . . . . . . . . 28 31 20 18 71 . Level 5 . | . . . . . . . . . . . . . . . . . . . . . . . . . . . . . . 9 . . . . . High Security . | . . . . . . . . . . . . . . . . . . . . . . . . . . . . . . . . . . . . Max Security . | . . . . . . . . . . . . . . . . . . . . . . . . . . . . . . . . . . . . Peak Influence 1943 | . 207 65 525 161 633 306 . . . . 139 1 376 562 264 214 668 447 156 507 . . . . 44 751 . 212 147 1943 1341 1507 1327 1320 . Initial 1091 | . . 8 . 80 . 240 . . . . . 1 . 157 264 64 67 317 130 33 . . . . . 20 . . 6 7 1091 753 712 838 . Average 354 | . 75 4 307 38 261 191 . . . . 37 . 240 395 183 159 328 337 111 287 . . . . 7 422 . 56 58 881 1113 868 682 1049 . Influence Increases 21382 | . 587 130 1086 270 1472 727 265 60 20 45 319 . 756 1327 318 190 1085 468 88 802 200 90 . . 192 1173 . 480 599 2678 472 1900 1369 1076 1138 Destroy 0b10 Robot/C 9380 | . 320 60 700 220 820 280 160 60 20 20 140 . 240 540 160 80 260 200 . 400 180 80 . . 60 640 . 160 200 1240 200 900 480 560 . Destroy 0b10 Robot/NC 1100 | . 50 . 120 5 150 45 5 . . . 20 . 25 75 10 . 55 10 . 35 . . . . 25 10 . 70 15 60 90 80 85 60 . Destroy Leader 1796 | . 80 10 192 30 242 78 10 . . 10 52 . 64 66 . . 68 42 . 84 20 10 . . 28 144 . 40 26 112 56 148 84 100 . Allied During Kill 1777 | . . . . . . . . . . . . . 329 575 139 80 304 81 . 229 . . . . . 38 . . . . . . . 2 . Successful Hack 626 | . 15 . 30 . 41 90 . . . . 70 . 23 16 . . . 28 . 22 . . . . 34 43 . 41 125 7 . 28 13 . . Select Force Hacks 90 | . 30 . 30 . . . . . . . . . . . . . . 30 . . . . . . . . . . . . . . . . . Disable Machine 1605 | . 45 15 . 15 30 90 . . . . 15 . 15 . . 30 270 30 . . . . . . 15 75 . 15 105 240 15 255 105 90 135 Anti-Garrison Action 300 | . . . . . . . . . . . . . . . . . . . . . . . . . . . . . . 150 . . 150 . . Destroy Structure 3913 | . 17 . 14 . 54 24 . . . . 22 . 45 55 9 . 113 32 88 32 . . . . 30 178 . 34 98 794 111 459 452 249 1003 Partial Spotted 105 | . . . . . . . . . . . . . 15 . . . 15 . . . . . . . . 30 . 15 30 . . . . . . Lose Combat Pursuer 690 | . 30 45 . . 135 120 90 . . 15 . . . . . . . 15 . . . . . . . 15 . 105 . 75 . 30 . 15 . Influence Decreases 20484 | . 564 153 879 477 942 1024 325 204 49 45 315 4 434 1177 628 158 630 744 413 398 328 143 271 . 150 522 693 467 598 751 1072 2053 1246 981 1646 Entered New Map 6797 | . . 15 . 127 . 290 87 34 29 . . 3 . 165 208 98 127 332 243 15 168 63 271 . . 22 693 . 7 7 850 588 476 473 1406 Time Decay 8935 | . 504 138 530 330 678 574 238 170 20 38 216 1 214 452 230 40 190 222 160 204 150 80 . . 150 380 . 263 444 674 222 565 380 478 . Lost Part 466 | . 20 . 30 10 55 10 . . . 7 4 . . . . . . . 10 . 10 . . . . 40 . . . 70 . . 90 30 80 Lost Ally 1041 | . . . . 10 . . . . . . . . 70 260 190 20 20 40 . 179 . . . . . 80 . . 12 . . . . . 160 Purge Threat 3245 | . 40 . 319 . 209 150 . . . . 95 . 150 300 . . 293 150 . . . . . . . . . 204 135 . . 900 300 . . Squads Dispatched 117 | . 4 . 5 . 10 11 . . . . 5 . 3 4 . . 3 2 . 4 . . . . 3 7 . 6 4 11 4 17 10 4 . Investigation 30 | . 2 . 1 . 1 5 . . . . 2 . 1 1 . . . 2 . 1 . . . . 1 2 . 4 2 . . 4 1 . . Extermination 30 | . . . . . . 5 . . . . 2 . 1 . . . 1 . . 1 . . . . 1 3 . . 2 4 . 5 2 3 . Reinforcement 37 | . 2 . 4 . 9 1 . . . . 1 . . 3 . . 1 . . 2 . . . . . 2 . 2 . 1 4 3 2 . . Assault 16 | . . . . . . . . . . . . . . . . . 1 . . . . . . . . . . . . 5 . 5 4 1 . Garrison 4 | . . . . . . . . . . . . . 1 . . . . . . . . . . . 1 . . . . 1 . . 1 . . Intercept . | . . . . . . . . . . . . . . . . . . . . . . . . . . . . . . . . . . . . Searches Triggered . | . . . . . . . . . . . . . . . . . . . . . . . . . . . . . . . . . . . . Unchained Authorized 1 | . . . . . . . . . . . . . . . . . . . . . . . . . . . . . . . . . 1 . . Construction Impeded 6 | . . . 1 . . . . . . . . . . 3 . . . . . . . . . . . . . . . . . . 2 . . Haulers Reinforced 2 | . . . . . . . . . . . . . . . . . . . . . . . . . . . . 1 . . . 1 . . . Active Scanning Responses . | . . . . . . . . . . . . . . . . . . . . . . . . . . . . . . . . . . . . Cargo Convoy Interrupts . | . . . . . . . . . . . . . . . . . . . . . . . . . . . . . . . . . . . . Stealth | -11 -10 -10 -9 -9 -8 -7 -7 -7 -7 -6 -6 -6 -6 -6 -6 -6 -6 -5 -5 -5 -5 -5 -5 -4 -4 -4 -4 -3 -3 -3 -2 -2 -1 -1 -1 --------- Run | Yrd Mat Min Mat Min Mat Fac Low Low Dat Pro Fac Was Fac Ext Cet Arc Hub Fac Was Fac Upp Upp Zhi Pro Fac Arm Lab Res Qua Frg Res Tes Acc Com Ac0 Distress Signals 61 | . 4 1 4 . 3 1 . . . . 2 . . 4 2 . 3 . . . . . . . . 1 . 9 1 . 1 . . 25 . Communications Jammed 19 | . . . . . . . . . . . . . . . . . . . . . . . . . . . . . 2 17 . . . . . Distress Signals 19 | . . . . . . . . . . . . . . . . . . . . . . . . . . . . . 2 17 . . . . . Times Spotted 674 | . 28 4 55 8 58 30 12 3 4 4 12 . 4 24 9 3 13 9 6 24 9 4 . . 15 38 . 26 17 63 12 48 33 25 74 Peak Tracking Total 11 | . 5 3 4 4 6 11 5 1 4 3 3 . 2 6 5 1 6 4 4 5 5 4 . . 8 7 . 10 4 7 5 6 9 4 8 Tactical Retreats 33 | . 2 2 . . 6 2 4 . . 1 . . . . . . . 1 . . . . . . . 1 . 4 . 2 . 2 . 1 5 Traps | -11 -10 -10 -9 -9 -8 -7 -7 -7 -7 -6 -6 -6 -6 -6 -6 -6 -6 -5 -5 -5 -5 -5 -5 -4 -4 -4 -4 -3 -3 -3 -2 -2 -1 -1 -1 ------- Run | Yrd Mat Min Mat Min Mat Fac Low Low Dat Pro Fac Was Fac Ext Cet Arc Hub Fac Was Fac Upp Upp Zhi Pro Fac Arm Lab Res Qua Frg Res Tes Acc Com Ac0 Traps Triggered 17 | . . . . . 1 2 . . . . 1 . . 2 . . . 1 . 1 . . . . . 1 . 2 . 5 . 1 . . . Indirectly . | . . . . . . . . . . . . . . . . . . . . . . . . . . . . . . . . . . . . Trap Hack Attempts . | . . . . . . . . . . . . . . . . . . . . . . . . . . . . . . . . . . . . Triggered . | . . . . . . . . . . . . . . . . . . . . . . . . . . . . . . . . . . . . Disarmed 3 | . . . 3 . . . . . . . . . . . . . . . . . . . . . . . . . . . . . . . . Reprogrammed . | . . . . . . . . . . . . . . . . . . . . . . . . . . . . . . . . . . . . Reused . | . . . . . . . . . . . . . . . . . . . . . . . . . . . . . . . . . . . . Traps Extracted . | . . . . . . . . . . . . . . . . . . . . . . . . . . . . . . . . . . . . Installed . | . . . . . . . . . . . . . . . . . . . . . . . . . . . . . . . . . . . . Triggered . | . . . . . . . . . . . . . . . . . . . . . . . . . . . . . . . . . . . . Machines | -11 -10 -10 -9 -9 -8 -7 -7 -7 -7 -6 -6 -6 -6 -6 -6 -6 -6 -5 -5 -5 -5 -5 -5 -4 -4 -4 -4 -3 -3 -3 -2 -2 -1 -1 -1 ---------- Run | Yrd Mat Min Mat Min Mat Fac Low Low Dat Pro Fac Was Fac Ext Cet Arc Hub Fac Was Fac Upp Upp Zhi Pro Fac Arm Lab Res Qua Frg Res Tes Acc Com Ac0 Machines Disabled 140 | . 3 1 . 1 2 6 . . 1 . 1 . 1 1 . 2 18 2 . . . . . . 2 5 2 1 8 33 1 20 8 6 15 Max in Single Turn 15 | . 3 1 . 1 1 3 . . 1 . 1 . . 1 . 1 15 . . . . . . . 1 1 1 1 1 3 1 2 2 1 1 Garrison Access 12 | . . . . . 1 . . . . . 1 . 2 . . . . 1 . 1 . . . . 1 . . 1 1 1 . 1 1 . . Phase Generator 1 | . . . . . . . . . . . . . . . . . . . . . . . . . . . . . . . . . . 1 . Network Hub 1 | . . . . . . . . . . . . . . . . . 1 . . . . . . . . . . . . . . . . . . Machines Repaired . | . . . . . . . . . . . . . . . . . . . . . . . . . . . . . . . . . . . . Machines Dismantled . | . . . . . . . . . . . . . . . . . . . . . . . . . . . . . . . . . . . . Machines Sabotaged . | . . . . . . . . . . . . . . . . . . . . . . . . . . . . . . . . . . . . Overloaded Fab Kills . | . . . . . . . . . . . . . . . . . . . . . . . . . . . . . . . . . . . . Hacking | -11 -10 -10 -9 -9 -8 -7 -7 -7 -7 -6 -6 -6 -6 -6 -6 -6 -6 -5 -5 -5 -5 -5 -5 -4 -4 -4 -4 -3 -3 -3 -2 -2 -1 -1 -1 --------- Run | Yrd Mat Min Mat Min Mat Fac Low Low Dat Pro Fac Was Fac Ext Cet Arc Hub Fac Was Fac Upp Upp Zhi Pro Fac Arm Lab Res Qua Frg Res Tes Acc Com Ac0 Machines Accessed 175 | . 6 . 10 1 11 16 . . 4 . 11 . 11 19 . . 5 6 . 8 1 . 4 . 10 9 . 9 12 3 . 13 4 1 1 Terminals 110 | . 4 . 7 1 6 11 . . . . 7 . 5 18 . . 5 1 . 4 . . . . 6 8 . 4 8 3 . 8 4 . . Fabricators 10 | . . . . . . 1 . . . . 1 . 1 . . . . 1 . 1 . . . . . . . 3 . . . 2 . . . Repair Stations 16 | . 1 . 1 . 2 2 . . . . 2 . 1 . . . . 2 . . . . . . 1 1 . 1 1 . . 1 . . . Recycling Units 11 | . 1 . 1 . 1 1 . . . . . . 1 1 . . . 1 . 1 . . . . 2 . . . . . . . . 1 . Scanalyzers 8 | . . . 1 . 1 1 . . . . . . 1 . . . . . . 1 . . . . . . . . 2 . . 1 . . . Garrison Access 10 | . . . . . 1 . . . . . 1 . 2 . . . . 1 . 1 . . . . 1 . . 1 1 . . 1 . . . Total Hacks 629 | . 24 . 34 3 31 39 . . 28 . 28 . 34 46 . . 14 25 . 25 4 . 17 . 42 27 . 47 68 14 . 47 11 4 17 Successful 372 | . 14 . 25 1 16 18 . . 28 . 14 . 22 23 . . 10 12 . 10 4 . 17 . 16 17 . 25 42 9 . 28 4 . 17 Failed 252 | . 10 . 8 2 15 21 . . . . 13 . 11 23 . . 4 13 . 14 . . . . 26 10 . 22 25 5 . 19 7 4 . Catastrophic 36 | . 1 . 2 . 5 1 . . . . 1 . 2 2 . . 1 . . 2 . . . . 4 1 . 5 3 . . 2 2 2 . Database Lockouts 5 | . . . 1 . . . . . . . 1 . 1 . . . . . . 1 . . . . . . . . 1 . . . . . . Manual 235 | . 16 . 17 3 10 17 . . . . 13 . 4 21 2 . 12 4 . 8 . . . . 17 14 . 24 27 9 . 17 . . . Terminals 376 | . 17 . 23 3 19 27 . . . . 16 . 16 44 . . 14 5 . 17 . . . . 23 26 . 28 42 14 . 31 11 . . Fabricators 29 | . . . . . . 2 . . . . 5 . 3 . . . . 5 . 1 . . . . . . . 7 . . . 6 . . . Repair Stations 66 | . 4 . 6 . 7 4 . . . . 5 . 2 . . . . 8 . . . . . . 2 1 . 9 14 . . 4 . . . Recycling Units 40 | . 3 . 2 . 2 1 . . . . . . 2 2 . . . 6 . 2 . . . . 16 . . . . . . . . 4 . Scanalyzers 33 | . . . 3 . 2 5 . . . . . . 6 . . . . . . 3 . . . . . . . . 9 . . 5 . . . Garrison Access 19 | . . . . . 1 . . . . . 2 . 5 . . . . 1 . 2 . . . . 1 . . 3 3 . . 1 . . . Terminal Hacks 201 | . 4 . 11 1 6 6 . . 28 . 7 . 10 15 . . 7 1 . 3 4 . 17 . 4 10 . 11 14 9 . 12 4 . 17 Record 37 | . . . . . . . . . 11 . . . . . . . . . . . 4 . 5 . . . . . . . . . . . 17 Part Schematic 24 | . . . . . . . . . 10 . 1 . . 1 . . . . . 1 . . 4 . 1 . . 4 2 . . . . . . Robot Schematic 4 | . . . . . . . . . 4 . . . . . . . . . . . . . . . . . . . . . . . . . . Robot Analysis 17 | . 3 . 1 . . . . . . . . . 1 1 . . . . . . . . 4 . . 1 . . 3 3 . . . . . Prototype ID Bank 9 | . . . 1 . . . . . 3 . . . . . . . . . . . . . 4 . . 1 . . . . . . . . . Open Door 15 | . . . . . . . . . . . 1 . 1 10 . . . . . . . . . . . 1 . 1 . . . . 1 . . Level Access Points 2 | . . . . . . 1 . . . . . . . . . . 1 . . . . . . . . . . . . . . . . . . Branch Access Points 6 | . . . . . . 1 . . . . 1 . 1 . . . . . . 1 . . . . 1 . . . . . . . 1 . . Machine Index 1 | . . . . . . . . . . . . . . . . . . . . . . . . . . . . . 1 . . . . . . Terminal Index 7 | . . . . . . 1 . . . . 1 . . . . . 1 . . . . . . . 1 1 . . . 1 . 1 . . . Fabricator Index 1 | . . . . . . . . . . . 1 . . . . . . . . . . . . . . . . . . . . . . . . Alert Level 15 | . . . 1 . 1 1 . . . . . . 3 1 . . . . . . . . . . . 1 . . 4 1 . 2 . . . Unreport Threat 27 | . 1 . 3 . 2 1 . . . . 2 . 1 2 . . 2 1 . . . . . . . . . 3 1 . . 6 2 . . Locate Traps 5 | . . . 1 . 1 . . . . . . . . . . . . . . . . . . . . 1 . 1 . 1 . . . . . Disarm Traps 1 | . . . 1 . . . . . . . . . . . . . . . . . . . . . . . . . . . . . . . . Recall Investigation 3 | . . . 1 . . 1 . . . . . . . . . . . . . . . . . . . . . . . . . 1 . . . Recall Reinforcements 1 | . . . . . . . . . . . . . . . . . . . . . . . . . . . . . . . . 1 . . . Hauler Manifests 5 | . . . . . 1 . . . . . . . 1 . . . . . . 1 . . . . . . . 2 . . . . . . . Registered Prototypes 1 | . . . . . . . . . . . . . 1 . . . . . . . . . . . . . . . . . . . . . . Zone Layout 19 | . . . 2 1 1 . . . . . . . 1 . . . 3 . . . . . . . 1 4 . . 3 2 . 1 . . . Proto ID Catalog 1 | . . . . . . . . . . . . . . . . . . . . . . . . . . . . . . 1 . . . . . Fabricator Hacks 17 | . . . . . . 2 . . . . 1 . 2 . . . . 2 . 1 . . . . . . . 5 . . . 4 . . . Network Status 2 | . . . . . . . . . . . . . . . . . . . . 1 . . . . . . . 1 . . . . . . . Load Schematic 8 | . . . . . . 1 . . . . 1 . 1 . . . . 1 . . . . . . . . . 2 . . . 2 . . . Build 7 | . . . . . . 1 . . . . . . 1 . . . . 1 . . . . . . . . . 2 . . . 2 . . . Repair Station Hacks 50 | . 4 . 5 . 5 3 . . . . 3 . 2 . . . . 5 . . . . . . 1 1 . 6 11 . . 4 . . . Scan Component 28 | . 2 . 3 . 3 2 . . . . 2 . 1 . . . . 3 . . . . . . . 1 . 3 6 . . 2 . . . Repair 21 | . 2 . 2 . 2 1 . . . . 1 . 1 . . . . 2 . . . . . . . . . 3 5 . . 2 . . . Refit 1 | . . . . . . . . . . . . . . . . . . . . . . . . . 1 . . . . . . . . . . Recycling Unit Hacks 14 | . 1 . 1 . . 1 . . . . . . 1 1 . . . 1 . 1 . . . . 7 . . . . . . . . . . Process 2 | . . . . . . . . . . . . . . . . . . . . . . . . . 2 . . . . . . . . . . Report Inventory 2 | . . . . . . . . . . . . . . . . . . . . . . . . . 2 . . . . . . . . . . Retrieve Matter 1 | . . . . . . . . . . . . . . . . . . . . . . . . . 1 . . . . . . . . . . Retrieve Components 9 | . 1 . 1 . . 1 . . . . . . 1 1 . . . 1 . 1 . . . . 2 . . . . . . . . . . Scanalyzer 24 | . . . 2 . 2 3 . . . . . . 4 . . . . . . 3 . . . . . . . . 7 . . 3 . . . Insert Component 8 | . . . . . . 1 . . . . . . 1 . . . . . . 1 . . . . . . . . 4 . . 1 . . . Analyze 6 | . . . . . . 1 . . . . . . 2 . . . . . . 1 . . . . . . . . . . . 2 . . . Retrieve Study 10 | . . . 2 . 2 1 . . . . . . 1 . . . . . . 1 . . . . . . . . 3 . . . . . . Garrison Access Hacks 10 | . . . . . 1 . . . . . 1 . 2 . . . . 1 . 1 . . . . 1 . . 1 1 . . 1 . . . Seal Access 10 | . . . . . 1 . . . . . 1 . 2 . . . . 1 . 1 . . . . 1 . . 1 1 . . 1 . . . Unauthorized Hacks 56 | . 5 . 6 . 2 3 . . . . 2 . 1 7 . . 3 2 . 1 . . . . 3 6 . 2 9 . . 4 . . . Terminals 48 | . 4 . 5 . 2 3 . . . . 1 . 1 7 . . 3 . . 1 . . . . 3 6 . 2 8 . . 2 . . . Track 3 | . . . . . 1 . . . . . . . . . . . . . . . . . . . . 1 . . 1 . . . . . . Assimilate 9 | . . . 1 . . . . . . . 1 . . . . . 1 . . . . . . . 1 1 . 1 3 . . . . . . Botnet 26 | . 1 . 2 . 1 3 . . . . . . 1 2 . . 2 . . 1 . . . . 2 4 . 1 4 . . 2 . . . Skim 10 | . 3 . 2 . . . . . . . . . . 5 . . . . . . . . . . . . . . . . . . . . . Fabricators 4 | . . . . . . . . . . . 1 . . . . . . 1 . . . . . . . . . . . . . 2 . . . Prioritize 4 | . . . . . . . . . . . 1 . . . . . . 1 . . . . . . . . . . . . . 2 . . . Repair Stations 1 | . . . . . . . . . . . . . . . . . . . . . . . . . . . . . 1 . . . . . . Patch 1 | . . . . . . . . . . . . . . . . . . . . . . . . . . . . . 1 . . . . . . Recycling Units 3 | . 1 . 1 . . . . . . . . . . . . . . 1 . . . . . . . . . . . . . . . . . Tunnel 3 | . 1 . 1 . . . . . . . . . . . . . . 1 . . . . . . . . . . . . . . . . . Scanalyzers . | . . . . . . . . . . . . . . . . . . . . . . . . . . . . . . . . . . . . Garrison Access . | . . . . . . . . . . . . . . . . . . . . . . . . . . . . . . . . . . . . Data Cores Recovered 4 | . . . . . . . . . . . . . . . . . 1 . . 1 . . . . . . . . . . . . 2 . . Used . | . . . . . . . . . . . . . . . . . . . . . . . . . . . . . . . . . . . . Hacking Detections 111 | . 5 . 10 1 9 15 . . . . 8 . 5 8 . . 4 3 . 3 . . . . 5 4 . 7 9 . . 11 3 1 . Full Trace Events 19 | . 2 . . . . 4 . . . . 2 . 1 1 . . . 1 . . . . . . . . . 2 1 . . 4 1 . . Feedback Events 3 | . . . . . . . . . . . 2 . . . . . . . . . . . . . . . . . . . . . 1 . . Corruption 1 | . . . . . . . . . . . 1 . . . . . . . . . . . . . . . . . . . . . . . . Hackware Fried 2 | . . . . . . . . . . . 1 . . . . . . . . . . . . . . . . . . . . . 1 . . Feedback Blocked . | . . . . . . . . . . . . . . . . . . . . . . . . . . . . . . . . . . . . Robot Schematics Acquired 9 | . . . . . . . . . 4 . . . . . . . . . . . . . . . . . . . . 3 . 2 . . . Robots Built . | . . . . . . . . . . . . . . . . . . . . . . . . . . . . . . . . . . . . Authchips . | . . . . . . . . . . . . . . . . . . . . . . . . . . . . . . . . . . . . Time . | . . . . . . . . . . . . . . . . . . . . . . . . . . . . . . . . . . . . Total Robot Build Rating . | . . . . . . . . . . . . . . . . . . . . . . . . . . . . . . . . . . . . Part Schematics Acquired 36 | . . . . . . 1 . . 10 . 1 . 1 1 . . . . . 2 . . 4 . 1 . . 4 2 5 . 4 . . . Parts Built 11 | . . . . . . 2 . . . . . . 1 . . . . 2 . . . . . . . . . 4 . . . 2 . . . Authchips . | . . . . . . . . . . . . . . . . . . . . . . . . . . . . . . . . . . . . Time 380 | . . . . . . 95 . . . . . . 50 . . . . 26 . . . . . . . . . 78 . . . 131 . . . Total Part Build Rating 69 | . . . . . . 10 . . . . . . 5 . . . . 12 . . . . . . . . . 28 . . . 14 . . . Part Studies Acquired 10 | . . . 2 . 2 1 . . . . . . 1 . . . . . . 1 . . . . . . . . 3 . . . . . . Parts Repaired 20 | . 2 . 2 . 2 1 . . . . 1 . 1 . . . . 1 . . . . . . . . . 3 5 . . 2 . . . Time 838 | . 52 . 97 . 46 50 . . . . 29 . 68 . . . . 72 . . . . . . . . . 126 190 . . 108 . . . Parts Recycled . | . . . . . . . . . . . . . . . . . . . . . . . . . . . . . . . . . . . . Recycled Matter . | . . . . . . . . . . . . . . . . . . . . . . . . . . . . . . . . . . . . Retrieved Matter . | . . . . . . . . . . . . . . . . . . . . . . . . . . . . . . . . . . . . Retrieved Components 26 | . 2 . 9 . . 4 . . . . . . . 3 . . . 3 . 2 . . . . 3 . . . . . . . . . . Parts Scanalyzed 4 | . . . . . . 1 . . . . . . 1 . . . . . . 1 . . . . . . . . . . . 1 . . . Part Schematics Acquired 4 | . . . . . . 1 . . . . . . 1 . . . . . . 1 . . . . . . . . . . . 1 . . . Parts Damaged . | . . . . . . . . . . . . . . . . . . . . . . . . . . . . . . . . . . . . Bothacking | -11 -10 -10 -9 -9 -8 -7 -7 -7 -7 -6 -6 -6 -6 -6 -6 -6 -6 -5 -5 -5 -5 -5 -5 -4 -4 -4 -4 -3 -3 -3 -2 -2 -1 -1 -1 ------------ Run | Yrd Mat Min Mat Min Mat Fac Low Low Dat Pro Fac Was Fac Ext Cet Arc Hub Fac Was Fac Upp Upp Zhi Pro Fac Arm Lab Res Qua Frg Res Tes Acc Com Ac0 Used RIF Installer . | . . . . . . . . . . . . . . . . . . . . . . . . . . . . . . . . . . . . Robots Hacked 2 | . . . . . . 1 . . . . 1 . . . . . . . . . . . . . . . . . . . . . . . . Non-combat 2 | . . . . . . 1 . . . . 1 . . . . . . . . . . . . . . . . . . . . . . . . Combat . | . . . . . . . . . . . . . . . . . . . . . . . . . . . . . . . . . . . . Robot Hacks Applied 2 | . . . . . . 1 . . . . 1 . . . . . . . . . . . . . . . . . . . . . . . . find_chute 2 | . . . . . . 1 . . . . 1 . . . . . . . . . . . . . . . . . . . . . . . . Relay Couplers Released 3 | . . . . . . . . . . . . . . . . . . . . . . . . . . . . . . 2 . . 1 . . Machine Destruction 3 | . . . . . . . . . . . . . . . . . . . . . . . . . . . . . . 2 . . 1 . . Fabnet Peak Effective % . | . . . . . . . . . . . . . . . . . . . . . . . . . . . . . . . . . . . . Robots Rewired 5 | . . . . . . . . . . . . . . . . . . 1 . . . . . . . 4 . . . . . . . . . Allies Hacked 1 | . . . . . . . . . . . . . . . . . . . . . . . . . . 1 . . . . . . . . . Hacks Repelled 1 | . . . . . . . . . . . . . . . . . . . . . . . . . . . . . 1 . . . . . . Allies | -11 -10 -10 -9 -9 -8 -7 -7 -7 -7 -6 -6 -6 -6 -6 -6 -6 -6 -5 -5 -5 -5 -5 -5 -4 -4 -4 -4 -3 -3 -3 -2 -2 -1 -1 -1 -------- Run | Yrd Mat Min Mat Min Mat Fac Low Low Dat Pro Fac Was Fac Ext Cet Arc Hub Fac Was Fac Upp Upp Zhi Pro Fac Arm Lab Res Qua Frg Res Tes Acc Com Ac0 Total Allies 70 | . . . 1 . . . . . . . 1 20 . 14 5 . . 1 18 . 2 . . . . 5 . 1 2 . . . . . . Largest Group 21 | . . . 1 1 . . . . . . 1 21 21 18 13 5 4 3 18 13 2 2 . . . 4 . 1 1 . . . . . . Highest-Rated Group 827 | . . . 10 10 . . . . . . 26 827 827 679 766 480 384 225 656 531 40 40 . . . 188 . 45 45 . . . . . . Highest-Rated Ally 159 | . . . 10 10 . . . . . . 26 50 50 159 159 96 96 96 50 50 20 20 . . . 47 . 45 45 . . . . . . Total Orders 65 | . . . . . . . . . . . . . . . 2 . . . . . . . . . . . . . 2 . . . . 3 58 STAY 2 | . . . . . . . . . . . . . . . 1 . . . . . . . . . . . . . 1 . . . . . . FOLLOW 2 | . . . . . . . . . . . . . . . 1 . . . . . . . . . . . . . 1 . . . . . . EXPLORE 30 | . . . . . . . . . . . . . . . . . . . . . . . . . . . . . . . . . . . 30 RETURN 31 | . . . . . . . . . . . . . . . . . . . . . . . . . . . . . . . . . . 3 28 Ally Attacks 695 | . . . . . . . . . . . . . 57 126 78 13 48 23 86 81 . . . . . 19 . . . . . . . 20 144 Total Damage 25356 | . . . . . . . . . . . . . 2104 3603 1654 599 1473 909 3405 2017 . . . . . 585 . . . . . . . 1459 7548 Kills 102 | . . . . . . . . . . . . . 13 32 8 2 11 8 11 10 . . . . . 1 . . . . . . . . 6 Allies Corrupted 4 | . . . . . . . . . . . . . 2 . . . 1 . . . . . . . . . . . 1 . . . . . . Allies Melted 2 | . . . . . . . . . . . . . . 1 . 1 . . . . . . . . . . . . . . . . . . . Intel | -11 -10 -10 -9 -9 -8 -7 -7 -7 -7 -6 -6 -6 -6 -6 -6 -6 -6 -5 -5 -5 -5 -5 -5 -4 -4 -4 -4 -3 -3 -3 -2 -2 -1 -1 -1 ------- Run | Yrd Mat Min Mat Min Mat Fac Low Low Dat Pro Fac Was Fac Ext Cet Arc Hub Fac Was Fac Upp Upp Zhi Pro Fac Arm Lab Res Qua Frg Res Tes Acc Com Ac0 Active Infowar (turns) 17616 | . . . . . . 1605 497 325 178 433 680 239 443 1087 436 41 330 422 276 325 300 176 136 134 499 636 110 710 992 2293 467 1689 597 1560 . Sensors 15936 | . . . . . . 1605 497 325 178 433 680 239 443 1087 436 41 330 422 268 325 300 176 136 134 499 627 110 667 971 2254 467 1689 597 . . Terrain 950 | . . . . . . . . . . . . . . . . . . . 8 . . . . . . 514 . 428 . . . . . . . Structural 97 | . . . . . . . . . . . . . . . . . . . . . . . . . . . . . . . . . 97 . . Cloaking 4719 | . . . . . . . . . . . . . . . . . . . . . . . . . . . . . . 596 374 1600 589 1560 . Jamming 723 | . . . . . . . . . . . . . . . . . . . . . . . . . . . . . 270 453 . . . . . Robot Analysis Total 17 | . 3 . 1 . . . . . . . . . 1 1 . . . . . . . . 4 . . 1 . . 3 3 . . . . . Derelict Logs Recovered 8 | . . 2 . 1 . . . 2 . 1 . . . . . . . . . . 1 . . 1 . . . . . . . . . . . Drone Launches 42 | . . . . . . . . . . . . . . . . . . . . . . . . . . . . . . . . . . 3 39 Drone Recoveries 31 | . . . . . . . . . . . . . . . . . . . . . . . . . . . . . . . . . . 3 28 Exploration | -11 -10 -10 -9 -9 -8 -7 -7 -7 -7 -6 -6 -6 -6 -6 -6 -6 -6 -5 -5 -5 -5 -5 -5 -4 -4 -4 -4 -3 -3 -3 -2 -2 -1 -1 -1 ------------- Run | Yrd Mat Min Mat Min Mat Fac Low Low Dat Pro Fac Was Fac Ext Cet Arc Hub Fac Was Fac Upp Upp Zhi Pro Fac Arm Lab Res Qua Frg Res Tes Acc Com Ac0 Turns Passed 35322 | 58 2129 1618 2793 1563 4461 1756 519 346 201 457 747 255 457 1139 483 80 385 466 322 449 304 176 136 134 554 885 125 721 1153 2634 467 1689 881 2813 1966 Spaces Moved 23724 | 43 679 479 883 607 1471 2074 640 496 138 390 789 258 498 762 175 47 379 485 368 453 459 267 212 165 768 865 133 1124 1555 1441 356 1110 573 1196 1386 Core 20 | 20 . . . . . . . . . . . . . . . . . . . . . . . . . . . . . . . . . . . Treads 4126 | 23 679 479 883 607 1455 . . . . . . . . . . . . . . . . . . . . . . . . . . . . . . Legs 5363 | . . . . . . . . . . . . . . . . . . . . . . . . . . . . . . 742 356 1110 573 1196 1386 Wheels 16 | . . . . . 16 . . . . . . . . . . . . . . . . . . . . . . . . . . . . . . Hover 14199 | . . . . . . 2074 640 496 138 390 789 258 498 762 175 47 379 485 368 453 459 267 212 165 768 865 133 1124 1555 699 . . . . . Flight . | . . . . . . . . . . . . . . . . . . . . . . . . . . . . . . . . . . . . Fastest Speed 37 | 50 160 320 240 240 213 56 62 62 62 62 62 65 65 65 65 66 66 56 56 56 56 56 54 54 47 38 39 37 39 37 100 100 100 100 110 Average Speed 103 | 114 260 320 244 240 239 57 62 62 62 62 62 65 65 65 65 66 66 58 56 56 56 59 56 54 47 43 39 37 40 88 100 100 113 155 110 Slowest Speed 710 | 160 320 320 320 240 325 186 62 62 62 62 129 130 65 65 66 66 66 129 56 56 56 61 62 54 48 48 39 39 133 300 100 100 203 710 113 Overloaded Moves 72 | . . . . . . . . . . . . . . . . . . . . . . . . . . . . . . 72 . . . . . Propulsion Burnouts . | . . . . . . . . . . . . . . . . . . . . . . . . . . . . . . . . . . . . Robots Hopped . | . . . . . . . . . . . . . . . . . . . . . . . . . . . . . . . . . . . . Potential Cave-ins 40 | . . . . . . . . . . 3 . . . . . . . . . . . . . . . . . . . 37 . . . . . Cave-ins Triggered 3 | . . . . . . . . . . 1 . . . . . . . . . . . . . . . . . . . 2 . . . . . Teleports 4 | . . . . . . . . . . . . . . . . . . . . . . . . . . 1 . . . 1 . . . 1 1 Exploration Rate (%) 56 | 3 90 98 82 97 88 53 62 66 80 55 23 95 14 81 56 62 49 11 96 17 68 54 60 26 20 54 80 29 84 34 9 90 12 44 95 Regions Visited 35 Branch Regions 21 Pre-discovered Areas 13 | . 1 1 1 2 . . . 1 1 . . . . 2 . . . 1 . . . . 3 . . . . . . . . . . . . Known Exits Taken 25 | . . 1 . . . 1 1 1 1 1 . . 1 1 1 1 1 . . 1 1 1 1 1 1 1 1 1 1 1 1 1 1 . . Unknown Exits Taken 6 | 1 1 . 1 1 1 . . . . . . . . . . . . . . . . . . . . . . . . . . . . 1 . Scrap Searched 19 | . . 1 . 4 . . 3 4 . . . . . . . . . . . . 2 2 . 3 . . . . . . . . . . . Spaces Dug 314 | . . . 8 . 11 19 3 2 . 11 11 . . 3 . . 4 . . 4 16 . . 7 9 25 . 8 24 46 12 39 32 8 12 Terrain Destroyed 1702 | . 17 . 10 . 41 22 73 4 . 23 26 . . 5 5 . 176 8 . 6 81 57 . 12 17 117 . 19 52 162 48 218 162 116 225 Melee 30 | . . . 2 . . 19 2 1 . 1 5 . . . . . . . . . . . . . . . . . . . . . . . . Projectile 1083 | . . . . . . . 1 3 . 22 6 . . 5 5 . 6 . . 6 1 . . 12 17 25 . 19 52 162 48 218 134 116 225 AOE 589 | . 17 . 8 . 41 3 70 . . . 15 . . . . . 170 8 . . 80 57 . . . 92 . . . . . . 28 . . Terrain Rammed . | . . . . . . . . . . . . . . . . . . . . . . . . . . . . . . . . . . . . Walls Destroyed . | . . . . . . . . . . . . . . . . . . . . . . . . . . . . . . . . . . . . Machines Disabled . | . . . . . . . . . . . . . . . . . . . . . . . . . . . . . . . . . . . . Actions | -11 -10 -10 -9 -9 -8 -7 -7 -7 -7 -6 -6 -6 -6 -6 -6 -6 -6 -5 -5 -5 -5 -5 -5 -4 -4 -4 -4 -3 -3 -3 -2 -2 -1 -1 -1 --------- Run | Yrd Mat Min Mat Min Mat Fac Low Low Dat Pro Fac Was Fac Ext Cet Arc Hub Fac Was Fac Upp Upp Zhi Pro Fac Arm Lab Res Qua Frg Res Tes Acc Com Ac0 Total 32002 | 49 880 531 1296 690 2117 2493 720 515 219 553 961 338 609 1369 520 83 472 638 472 576 486 277 227 195 888 1218 199 1344 1969 2539 432 1547 748 2019 1813 Wait 4960 | . 67 31 191 58 389 256 34 3 59 115 80 66 86 551 294 30 67 111 85 67 8 . . 12 53 164 46 140 282 604 39 281 35 608 48 Move 23687 | 42 678 478 882 606 1470 2073 639 495 137 388 789 257 497 761 174 46 378 485 367 452 458 266 211 164 767 864 132 1123 1554 1438 355 1109 572 1195 1385 Hop . | . . . . . . . . . . . . . . . . . . . . . . . . . . . . . . . . . . . . Pick Up 329 | 1 33 2 35 6 32 14 3 1 2 . 10 2 5 4 6 . 1 4 3 3 1 1 3 1 5 12 4 6 9 59 2 12 13 18 16 Fast Attach 172 | 6 2 . 10 . 12 7 3 . . . 2 . 2 3 3 . . 3 3 3 2 . 6 1 3 9 4 8 15 28 . 4 4 24 5 Attach 117 | . 4 . 6 1 7 6 . . . 1 6 . . . . . . 3 1 . 1 2 . . 4 5 . 3 2 24 2 5 10 11 13 Detach 13 | . . . . . . . . . . . 1 . . . . . . . . 1 . . . . 1 1 . . 1 3 . 1 . 3 1 Swap 431 | . 4 . 20 2 19 39 11 7 2 6 22 6 4 3 6 3 7 12 6 12 6 2 . 1 14 51 3 14 25 59 8 14 11 17 15 Drop 392 | . 9 2 44 5 45 30 6 1 2 . 6 3 6 7 10 . 1 3 4 8 1 1 7 2 7 18 5 10 21 69 . 15 6 33 5 Fire 1728 | . 79 14 101 11 141 32 13 7 . 41 32 4 9 18 27 4 18 9 3 30 9 5 . 14 34 74 5 40 60 239 25 101 97 108 324 Melee 81 | . . . 2 . . 36 11 1 17 1 13 . . . . . . . . . . . . . . . . . . . . . . . . Ram . | . . . . . . . . . . . . . . . . . . . . . . . . . . . . . . . . . . . . Kick 8 | . . . . . . . . . . . . . . . . . . . . . . . . . . . . . . . 1 5 . 2 . Crush 16 | . 4 4 5 1 2 . . . . . . . . . . . . . . . . . . . . . . . . . . . . . . Escape Stasis 39 | . . . . . . . . . . 1 . . . 22 . . . . . . . . . . . . . . . 16 . . . . . Rewire 29 | . . . . . . . . . . . . . . . . . . 8 . . . . . . . 20 . . . . . . . . 1 Trap . | . . . . . . . . . . . . . . . . . . . . . . . . . . . . . . . . . . . . Miscellaneous . | . . . . . . . . . . . . . . . . . . . . . . . . . . . . . . . . . . . . Route ------- -11/Scrapyard -10/Materials (discovered 5 exits: *Mat x3 / [*Min] / [*Sub]) -10/Mines (discovered 3 exits: *Mat x2 / [*Sub]) -9/Materials (discovered 4 exits: *Mat x2 / *Min x2) -9/Mines (discovered 2 exits: *Mat x2) -8/Materials (discovered 2 exits: *Fac x2) -7/Factory (discovered 7 exits: *Fac x4 / *Sto / *Low x2) -7/Lower Caves -7/Lower Caves -7/Data Miner -6/Proximity Caves -6/Factory (discovered 4 exits: *Low x2 / *Ext x2) -6/Waste -6/Factory (discovered 4 exits: Low x2 / *Ext x2) -6/Extension (discovered 2 exits: *Fac / *Cet) -6/Cetus (discovered 2 exits: *Fac / *Arc) -6/Archives -6/Hub_04(d) (discovered 4 exits: *Fac x4) -5/Factory (discovered 3 exits: Fac x2 / Upp) -5/Waste -5/Factory (discovered 2 exits: *Upp x2) -5/Upper Caves -5/Upper Caves -5/Zhirov -4/Proximity Caves -4/Factory (discovered 3 exits: Upp x2 / *Arm) -4/Armory (discovered 2 exits: *Res / *Lab) -4/Lab -3/Research -3/Quarantine (discovered 2 exits: [*Sec] / *Frg) -3/Protoforge -2/Research -2/Testing -1/Access -1/Command (discovered 3 exits: [Sur x2] / *Ac0) -1/Access_0 0b11 Command History --------- Turn | Location | Event 4 | -11/Scrapyard | Discovered new exit (range 16) 59 | -11/Scrapyard | Entered Materials 170 | -10/Materials | Discovered new exit (range 14) 312 | -10/Materials | Build established: Mutant 695 | -10/Materials | Discovered new exit (range 16) 765 | -10/Materials | Core integrity fell below 50% 1272 | -10/Materials | Repaired Lgt. Treads 1300 | -10/Materials | Repaired Lgt. Treads 1426 | -10/Materials | Discovered new exit (range 11) 1640 | -10/Materials | Discovered new exit (range 7) 1827 | -10/Materials | Discovered new exit (range 16) 2188 | -10/Materials | Entered Mines 2211 | -10/Mines | Discovered new exit (range 5) 2435 | -10/Mines | Identified exit to Materials 2641 | -10/Mines | Discovered new exit (range 6) 3597 | -10/Mines | Learned location of Mines (-8) 3806 | -10/Mines | Entered Materials 3806 | -9/Materials | Evolved 2 slots: Utility x1, Weapon x1 3996 | -9/Materials | Central database locked down 4114 | -9/Materials | Build established: Gunner 4467 | -9/Materials | Destroyed 7 combat bots 4665 | -9/Materials | Discovered new exit (range 11) 4966 | -9/Materials | Discovered new exit (range 11) 5364 | -9/Materials | Build established: Scavenger-Gunner 5399 | -9/Materials | Discovered new exit (range 16) 5984 | -9/Materials | Repaired Broken Hvy. Assault Rifle 6038 | -9/Materials | Repaired Corrupted Imp. Heat Sink 6067 | -9/Materials | Build established: Gunner 6363 | -9/Materials | Discovered new exit (range 8) 6599 | -9/Materials | Entered Mines 6599 | -9/Mines | Accompanied by 1 ally 6827 | -9/Mines | Deemed a non-threat by the Exiles lab entrance 6893 | -9/Mines | Received a Rocket Launcher from a helpful Derelict 6991 | -9/Mines | Learned location of Storage (-7) 6992 | -9/Mines | Discovered new exit (range 5) 7076 | -9/Mines | Found a hidden stash of uninstalled traps 7146 | -9/Mines | Discovered new exit (range 7) 7333 | -9/Mines | Assembled infested the area 7449 | -9/Mines | Met 8R-AWN 8162 | -9/Mines | Entered Materials 8162 | -8/Materials | Evolved 2 slots: Propulsion x1, Utility x1 9666 | -8/Materials | Repaired Adv. Beam Rifle 9684 | -8/Materials | Repaired Med. Armor Plating 11358 | -8/Materials | Discovered new exit (range 16) 11829 | -8/Materials | Discovered new exit (range 16) 12623 | -8/Materials | Entered Factory 12623 | -7/Factory | Evolved 2 slots: Propulsion x1, Utility x1 12738 | -7/Factory | Discovered new exit (range 4) 12742 | -7/Factory | Identified exit to Storage 13017 | -7/Factory | Discovered new exit (range 15) 13217 | -7/Factory | Identified exit to Factory 13334 | -7/Factory | Identified exit to Lower Caves 13446 | -7/Factory | Discovered exit to Factory (range 16) 13762 | -7/Factory | Fabricated Cmb. Airjet? 13777 | -7/Factory | Build established: Mutant 14354 | -7/Factory | Repaired Cmb. Airjet+ 14379 | -7/Factory | Entered Lower Caves 14457 | -7/Lower Caves | Attracted the attention of an 0b10 checkpoint 14484 | -7/Lower Caves | Encountered a Warlord checkpoint 14616 | -7/Lower Caves | Found Imp. Powered Armor 14894 | -7/Lower Caves | Discovered new exit (range 5) 14896 | -7/Lower Caves | Identified exit to Lower Caves 14898 | -7/Lower Caves | Entered another Lower Caves area 15113 | -7/Lower Caves | Learned location of Zion (-6) 15120 | -7/Lower Caves | Build established: Skirmisher 15135 | -7/Lower Caves | Learned location of 1 exit from Factory 15191 | -7/Lower Caves | Discovered new exit (range 12) 15226 | -7/Lower Caves | Identified exit to Data Miner 15244 | -7/Lower Caves | Entered Data Miner 15244 | -7/Data Miner | Discovered new exit (range 6) 15256 | -7/Data Miner | Met Data Miner 15269 | -7/Data Miner | Learned location of Section 7 (-3) 15269 | -7/Data Miner | Acquired the access code to Warlord's prototype stash 15280 | -7/Data Miner | Received God Mode back door access code from Data Miner 15295 | -7/Data Miner | Destroyed Data Miner 15298 | -7/Data Miner | Found Prototype Hackware 15300 | -7/Data Miner | Found Prototype Hackware 15301 | -7/Data Miner | Data Conduit disabled 15445 | -7/Data Miner | Identified exit to Proximity Caves 15445 | -7/Data Miner | Entered Proximity Caves 15777 | -6/Proximity Caves | Spotted B-75 Beast 15897 | -6/Proximity Caves | Crushed by falling debris 15902 | -6/Proximity Caves | Entered Factory 15902 | -6/Factory | Evolved 2 slots: Utility x2 15902 | -6/Factory | Identified System Mapper 15903 | -6/Factory | Identified exit to Lower Caves 15982 | -6/Factory | Identified exit to Extension 16009 | -6/Factory | Hacking Suite fried by hacking feedback 16009 | -6/Factory | Identified Ghost Barrier 16194 | -6/Factory | Build established: Hacker-Mutant 16337 | -6/Factory | Repaired Broken Enh. Nuclear Core 16377 | -6/Factory | Central database locked down 16649 | -6/Factory | Manually triggered Chute Trap 16649 | -6/Factory | Sucked down chute 16649 | -6/Factory | Entered Waste 16650 | -6/Waste | Joined by Warlord forces that had cleared the area 16674 | -6/Waste | 1 allies followed down the chute 16689 | -6/Waste | Build established: Hacker-Skirmisher 16716 | -6/Waste | Found Adv. Powered Armor 16837 | -6/Waste | Discovered new exit (range 14) 16849 | -6/Waste | Identified exit to Factory 16904 | -6/Waste | Entered Factory 16904 | -6/Factory | Accompanied by 21 allies 16905 | -6/Factory | Garrison activated, responded to threat 17024 | -6/Factory | Fabricated Exp. Targeting Computer? 17028 | -6/Factory | Repaired Adv. Powered Armor 17187 | -6/Factory | Central database locked down 17331 | -6/Factory | Build established: Hacker-Gunner 17361 | -6/Factory | Entered Extension 17361 | -6/Extension | Accompanied by 17 allies 17684 | -6/Extension | Spotted B-75 Beast 17692 | -6/Extension | Allies destroyed B-75 Beast 17715 | -6/Extension | Spotted B-75 Beast 17728 | -6/Extension | Allies destroyed B-75 Beast 17757 | -6/Extension | Lost 7 allies 17819 | -6/Extension | Rescued a captive Derelict 17820 | -6/Extension | Rescued a captive Derelict 17838 | -6/Extension | Rescued a captive Derelict 17865 | -6/Extension | Rescued a captive Derelict 17866 | -6/Extension | Rescued a captive Derelict 17998 | -6/Extension | Rescued a captive Derelict 17999 | -6/Extension | Rescued a captive Derelict 18038 | -6/Extension | Rescued a captive Derelict 18045 | -6/Extension | Rescued a captive Derelict 18089 | -6/Extension | Learned location of Archives (-6) 18094 | -6/Extension | Rescued A7 18100 | -6/Extension | Rescued a captive Derelict 18130 | -6/Extension | Rescued a captive Derelict 18152 | -6/Extension | Rescued a captive Derelict 18152 | -6/Extension | Rescued a captive Derelict 18159 | -6/Extension | Learned 2 Upper Caves zone layouts 18209 | -6/Extension | Lost 5 allies 18219 | -6/Extension | Learned location of Upper Caves (-5) 18228 | -6/Extension | Discovered new exit (range 10) 18228 | -6/Extension | Discovered new exit (range 6) 18232 | -6/Extension | Identified exit to Cetus 18310 | -6/Extension | Learned Factory scanalyzer intel 18343 | -6/Extension | Learned 12 Factory zone layouts 18384 | -6/Extension | Learned location of 1 exit from Proximity Caves 18435 | -6/Extension | Learned Factory trap positions 18498 | -6/Extension | Learned location of 3 exits from Factory 18500 | -6/Extension | Entered Cetus 18500 | -6/Cetus | Accompanied by 13 allies (A7) 18505 | -6/Cetus | Acquired a Cetus Manufacturing Module code from A7 18575 | -6/Cetus | Spotted Cetus Guard 18575 | -6/Cetus | Spotted Cetus Guard 18575 | -6/Cetus | Spotted Cetus Guard 18575 | -6/Cetus | Spotted Cetus Guard 18589 | -6/Cetus | Allies destroyed Cetus Guard 18594 | -6/Cetus | Destroyed Cetus Guard 18597 | -6/Cetus | Allies destroyed Cetus Guard 18607 | -6/Cetus | Allies destroyed Cetus Guard 18629 | -6/Cetus | Lost 7 allies 18640 | -6/Cetus | Started Cetus Manufacturing Module 18650 | -6/Cetus | Discovered new exit (range 15) 18665 | -6/Cetus | Manufactured an Enhanced Grunt 18690 | -6/Cetus | Manufactured an Enhanced Grunt 18715 | -6/Cetus | Manufactured an Enhanced Grunt 18740 | -6/Cetus | Manufactured an Enhanced Grunt 18765 | -6/Cetus | Manufactured an Enhanced Grunt 18868 | -6/Cetus | Spotted Cetus Guard 18878 | -6/Cetus | Destroyed Cetus Guard 18879 | -6/Cetus | Spotted Cetus Guard 18880 | -6/Cetus | Spotted Cetus Guard 18881 | -6/Cetus | Spotted Cetus Guard 18885 | -6/Cetus | Allies destroyed Cetus Guard 18888 | -6/Cetus | Allies destroyed Cetus Guard 18894 | -6/Cetus | Allies destroyed Cetus Guard 18910 | -6/Cetus | Murdered A7 18919 | -6/Cetus | Lost 4 allies 18935 | -6/Cetus | Discovered new exit (range 15) 18936 | -6/Cetus | Extracted ID and sensor layout for unrecognized location from A7's data core 18951 | -6/Cetus | Met Revision 17 18978 | -6/Cetus | Identified exit to Archives 18983 | -6/Cetus | Entered Archives 18983 | -6/Archives | Accompanied by 5 allies 19039 | -6/Archives | Discovered new exit (range 15) 19048 | -6/Archives | Identified exit to Hub_04(d) 19063 | -6/Archives | Entered Hub_04(d) 19063 | -6/Hub_04(d) | Accompanied by 4 allies 19147 | -6/Hub_04(d) | Identified exit to Factory 19404 | -6/Hub_04(d) | Network Hub disabled 19413 | -6/Hub_04(d) | First assault squad dispatched 19414 | -6/Hub_04(d) | Spotted Lightning 19448 | -6/Hub_04(d) | Entered Factory 19448 | -5/Factory | Accompanied by 2 allies 19448 | -5/Factory | Evolved 2 slots: Propulsion x1, Utility x1 19449 | -5/Factory | Identified exit to Factory 19449 | -5/Factory | Identified exit to Upper Caves 19451 | -5/Factory | Loaded intel: 119 trap records 19452 | -5/Factory | Loaded intel: 4 scanalyzer locations 19538 | -5/Factory | Fabricated Cmb. Gravmag System (x2) 19706 | -5/Factory | Repaired Broken Antigrav Array 19794 | -5/Factory | Spotted B-75 Beast 19880 | -5/Factory | Destroyed B-75 Beast 19914 | -5/Factory | Manually triggered Chute Trap 19914 | -5/Factory | Sucked down chute 19914 | -5/Factory | Entered Waste 19919 | -5/Waste | Spotted C-40 Crusher 19922 | -5/Waste | Spotted C-40 Crusher 19926 | -5/Waste | Crushed by Compactor (1 part destroyed, 1 dropped) 19932 | -5/Waste | Found Prototype Reactor 19939 | -5/Waste | Spotted C-40 Crusher 19941 | -5/Waste | Spotted C-40 Crusher 19943 | -5/Waste | Spotted C-40 Crusher 19953 | -5/Waste | Spotted C-40 Crusher 19959 | -5/Waste | Warlord forces began an assault 19975 | -5/Waste | Allies destroyed C-40 Crusher 19981 | -5/Waste | Allies destroyed C-40 Crusher 19982 | -5/Waste | Allies destroyed C-40 Crusher 19985 | -5/Waste | Allies destroyed C-40 Crusher 19991 | -5/Waste | Identified Zero-point Reactor 20016 | -5/Waste | Lost 5 allies 20034 | -5/Waste | Discovered new exit (range 12) 20045 | -5/Waste | Allies destroyed C-40 Crusher 20206 | -5/Waste | Identified exit to Factory 20236 | -5/Waste | Entered Factory 20236 | -5/Factory | Accompanied by 13 allies 20389 | -5/Factory | Lost 9 allies 20544 | -5/Factory | Destroyed 10 combat bots 20544 | -5/Factory | Lost 3 allies 20680 | -5/Factory | Central database locked down 20685 | -5/Factory | Entered Upper Caves 20835 | -5/Upper Caves | A Commander dispatched an escort 20846 | -5/Upper Caves | Learned Research garrison access intel 20859 | -5/Upper Caves | Learned location of 1 exit from Proximity Caves 20916 | -5/Upper Caves | Discovered new exit (range 10) 20935 | -5/Upper Caves | Found Alien Artifact 20935 | -5/Upper Caves | Identified Core Expander 20935 | -5/Upper Caves | Installed Core Expander, added new Power slot 20981 | -5/Upper Caves | Identified exit to Upper Caves 20989 | -5/Upper Caves | Entered another Upper Caves area 20989 | -5/Upper Caves | Accompanied by 2 allies 20990 | -5/Upper Caves | Commander's escort returned to base 20990 | -5/Upper Caves | Commander's escort returned to base 21135 | -5/Upper Caves | Discovered new exit (range 15) 21165 | -5/Upper Caves | Identified exit to Zhirov 21165 | -5/Upper Caves | Entered Zhirov 21165 | -5/Zhirov | Discovered new exit (range 3) 21167 | -5/Zhirov | Identified exit to Proximity Caves 21178 | -5/Zhirov | Met Zhirov 21190 | -5/Zhirov | Learned location of Quarantine (-3) 21195 | -5/Zhirov | Zhirov requested help retrieving the SGEMP Prototype 21205 | -5/Zhirov | Found Alien Artifact 21205 | -5/Zhirov | Identified Integrated Dissipator 21205 | -5/Zhirov | Installed Integrated Dissipator, increased core heat dissipation (+20) 21274 | -5/Zhirov | Found Alien Artifact 21301 | -5/Zhirov | Entered Proximity Caves 21435 | -4/Proximity Caves | Entered Factory 21435 | -4/Factory | Evolved 2 slots: Propulsion x1, Utility x1 21679 | -4/Factory | Identified exit to Upper Caves 21679 | -4/Factory | Identified exit to Armory 21926 | -4/Factory | Garrison activated, responded to threat 21989 | -4/Factory | Entered Armory 22128 | -4/Armory | Destroyed 7 combat bots 22224 | -4/Armory | Found Prototype Processor 22224 | -4/Armory | Identified Exp. Signal Interpreter 22517 | -4/Armory | Found Prototype Launcher 22517 | -4/Armory | Identified Com. Tesla Bomb Launcher 22790 | -4/Armory | Discovered new exit (range 3) 22847 | -4/Armory | Identified Transdimensional Reconstructor 22847 | -4/Armory | Warped through subspace to slip node 22847 | -4/Armory | Discovered new exit (range 1) 22860 | -4/Armory | Identified exit to Lab 22874 | -4/Armory | Entered Lab 22874 | -4/Lab | Discovered new exit (range 9) 22877 | -4/Lab | Identified exit to Research 22879 | -4/Lab | Hidden lab's door opened automatically 22879 | -4/Lab | Sensor layout match revealed 22880 | -4/Lab | Gained access to the hidden lab's interior 22909 | -4/Lab | Found Alien Artifact 22909 | -4/Lab | Identified Core Regenerator 22909 | -4/Lab | Used Core Regenerator, restored core integrity (+271) 22917 | -4/Lab | Found Alien Artifact 22917 | -4/Lab | Identified Integrated Mediator 22917 | -4/Lab | Installed Integrated Mediator, increased core attachment efficiency 22929 | -4/Lab | Found Prototype Device 22930 | -4/Lab | Identified AEGIS Remote Shield 22934 | -4/Lab | Found Prototype Hackware 22938 | -4/Lab | Found Prototype Energy Cannon 22951 | -4/Lab | Found Alien Artifact 22999 | -4/Lab | Entered Research 22999 | -3/Research | Evolved 2 slots: Propulsion x1, Utility x1 23000 | -3/Research | Loaded intel: 4 garrison access locations 23023 | -3/Research | Identified Deep Network Scanner 23135 | -3/Research | Spotted B-86 Titan 23199 | -3/Research | Revision forces began assault on 0b10 23255 | -3/Research | Met up with Revision 17++ 23347 | -3/Research | Destroyed B-86 Titan 23444 | -3/Research | Lost 4 allies 23460 | -3/Research | Discovered new exit (range 8) 23498 | -3/Research | Spotted B-86 Titan 23560 | -3/Research | Repaired Centrium Medium Armor Plating? 23562 | -3/Research | Fabricated Adv. Transmission Jammer (x2) 23569 | -3/Research | Fabricated Lrn. Sensor Array? 23632 | -3/Research | Repaired Adv. Cooling System 23676 | -3/Research | Repaired Cld. Gravmag System 23699 | -3/Research | Research terminal network offline 23720 | -3/Research | Identified exit to Quarantine 23720 | -3/Research | Entered Quarantine 23738 | -3/Quarantine | Cryocooling Duct disabled 23753 | -3/Quarantine | Ambient heat levels rising (+20) 23753 | -3/Quarantine | Non-combat units ordered to evacuate 23849 | -3/Quarantine | Identified Core Reset Matrix 23849 | -3/Quarantine | Central database locked down 23979 | -3/Quarantine | Found Alien Artifact 24156 | -3/Quarantine | Found Alien Artifact 24161 | -3/Quarantine | Found Alien Artifact 24289 | -3/Quarantine | Repaired Cmb. Linear Gravjet+ 24319 | -3/Quarantine | Repaired Adv. Cooling System 24357 | -3/Quarantine | Repaired Cmb. Linear Gravjet+ 24401 | -3/Quarantine | Repaired Enh. Nova Cannon+? 24455 | -3/Quarantine | Repaired Broken Enh. Nova Cannon+ 24464 | -3/Quarantine | Identified Dimensional Node Initializer 24464 | -3/Quarantine | Identified Subatomic Replicator 24464 | -3/Quarantine | Identified Hpw. Transdimensional Reconstructor 24613 | -3/Quarantine | Found Alien Artifact 24636 | -3/Quarantine | Spotted Fortress 24638 | -3/Quarantine | Destroyed Fortress 24656 | -3/Quarantine | Found Prototype Reactor 24656 | -3/Quarantine | Identified Vortex Chain Reactor 24870 | -3/Quarantine | Discovered new exit (range 6) 24870 | -3/Quarantine | Discovered new exit (range 6) 24872 | -3/Quarantine | Identified exit to Protoforge 24873 | -3/Quarantine | Entered Protoforge 25033 | -3/Protoforge | Discovered new exit (range 12) 25050 | -3/Protoforge | Identified exit to Research 25050 | -3/Protoforge | Initialized slip node 25078 | -3/Protoforge | Spotted Hotshot 25078 | -3/Protoforge | Spotted Hotshot 25127 | -3/Protoforge | Spotted Hotshot 25127 | -3/Protoforge | Spotted Hotshot 25127 | -3/Protoforge | Spotted Hotshot 25165 | -3/Protoforge | Superfortress began startup sequence 25172 | -3/Protoforge | Identified Terrabomb 25172 | -3/Protoforge | Used Terrabomb 25172 | -3/Protoforge | Additional patrols dispatched to research labs 25183 | -3/Protoforge | Crushed by falling debris 25184 | -3/Protoforge | System corruption reached 10% 25193 | -3/Protoforge | Found Prototype Device 25201 | -3/Protoforge | Found Cep. NT7 Matterbank 25221 | -3/Protoforge | Destroyed Hotshot 25255 | -3/Protoforge | Found Cep. NT7 Matterbank 25258 | -3/Protoforge | Found Cep. NT7 Matterbank 25268 | -3/Protoforge | Identified Warp Cannon 25273 | -3/Protoforge | Spotted Hotshot 25273 | -3/Protoforge | Destroyed Hotshot 25276 | -3/Protoforge | Spotted Hotshot 25279 | -3/Protoforge | Spotted Hotshot 25285 | -3/Protoforge | Spotted Hotshot 25301 | -3/Protoforge | Destroyed Hotshot 25314 | -3/Protoforge | Destroyed Hotshot 25323 | -3/Protoforge | Destroyed Hotshot 25333 | -3/Protoforge | Identified Crosscalibrator 25356 | -3/Protoforge | Destroyed Hotshot 25479 | -3/Protoforge | Spotted Immortal 25479 | -3/Protoforge | Spotted Immortal 25498 | -3/Protoforge | Destroyed Immortal 25505 | -3/Protoforge | Destroyed Immortal 25543 | -3/Protoforge | Spotted Hotshot 25543 | -3/Protoforge | Spotted Hotshot 25543 | -3/Protoforge | Spotted Hotshot 25543 | -3/Protoforge | Spotted Hotshot 25558 | -3/Protoforge | Destroyed Hotshot 25561 | -3/Protoforge | Destroyed Hotshot 25564 | -3/Protoforge | Garrison activated, responded to threat 25568 | -3/Protoforge | Destroyed Hotshot 25589 | -3/Protoforge | Destroyed 7 combat bots 25597 | -3/Protoforge | Destroyed Hotshot 25652 | -3/Protoforge | Build established: Scavenger-Tank 25671 | -3/Protoforge | Forge Plexus network access discovered 25702 | -3/Protoforge | Spotted Decapitator 25738 | -3/Protoforge | Spotted Decapitator 25738 | -3/Protoforge | Spotted Decapitator 25739 | -3/Protoforge | Destroyed Decapitator 25741 | -3/Protoforge | Destroyed Decapitator 25741 | -3/Protoforge | Destroyed Decapitator 25750 | -3/Protoforge | Spotted V041-s 25765 | -3/Protoforge | Found Faulty Cep. Plasma Driver 25775 | -3/Protoforge | Found Faulty Cep. Plasma Driver 25802 | -3/Protoforge | Found Faulty Cep. Plasma Driver 25896 | -3/Protoforge | Found Cep. Disintegration Ray 25997 | -3/Protoforge | Spotted Decapitator 25997 | -3/Protoforge | Spotted Decapitator 25997 | -3/Protoforge | Spotted Decapitator 25999 | -3/Protoforge | Destroyed Decapitator 25999 | -3/Protoforge | Destroyed Decapitator 26002 | -3/Protoforge | Destroyed Decapitator 26051 | -3/Protoforge | Spotted V248-v 26056 | -3/Protoforge | Destroyed V248-v 26060 | -3/Protoforge | Found Cep. Combat Aerolev Unit 26064 | -3/Protoforge | Found Cep. Antigrav Storage Unit 26070 | -3/Protoforge | Found Cep. Chromion Battery 26106 | -3/Protoforge | Found Cep. Chromion Battery 26114 | -3/Protoforge | Found Prototype Device 26117 | -3/Protoforge | Identified Exp. Weapon Cycler 26168 | -3/Protoforge | Crushed by falling debris 26193 | -3/Protoforge | Found Faulty Cep. Gyrokinetic System 26195 | -3/Protoforge | Found Cep. Gyrokinetic System 26198 | -3/Protoforge | Found Cep. Biometal Exoskeleton 26202 | -3/Protoforge | Found Cep. Biometal Exoskeleton 26248 | -3/Protoforge | Spotted V804-n 26248 | -3/Protoforge | Spotted V492-g 26310 | -3/Protoforge | Used Subatomic Replicator to replicate Cep. Plasma Driver 26379 | -3/Protoforge | Spotted V697-h 26388 | -3/Protoforge | Destroyed V697-h 26393 | -3/Protoforge | Found Cep. Zero-point Core 26401 | -3/Protoforge | Spotted Immortal 26402 | -3/Protoforge | Spotted Immortal 26408 | -3/Protoforge | Destroyed Immortal 26419 | -3/Protoforge | Destroyed Immortal 26435 | -3/Protoforge | Found Cep. Zero-point Core 26443 | -3/Protoforge | Found Cep. Zero-point Core 26536 | -3/Protoforge | Found Cep. Network Penetrator 26598 | -3/Protoforge | Destroyed AP7-3 26600 | -3/Protoforge | Spotted AP7-3 26600 | -3/Protoforge | Destroyed AP7-3 26657 | -3/Protoforge | Found Prototype Device 26657 | -3/Protoforge | Identified Cep. Thermoelectric Network 26660 | -3/Protoforge | Found Faulty Cep. Thermoelectric Network 26670 | -3/Protoforge | Found Cep. Core Analysis Suite 26673 | -3/Protoforge | Found Faulty Cep. Core Analysis Suite 26678 | -3/Protoforge | Found Cep. Cloak Mesh 26681 | -3/Protoforge | Found Cep. Impact Drone Bay 26685 | -3/Protoforge | Found Cep. Blasthammer 26691 | -3/Protoforge | Found Faulty Cep. Impact Drone Bay 26694 | -3/Protoforge | Found Faulty Cep. Cloak Mesh 26911 | -3/Protoforge | Found Transdimensional Reconstructor 26949 | -3/Protoforge | Build established: Tank 27123 | -3/Protoforge | First assault squad dispatched 27173 | -3/Protoforge | Found Faulty Cep. Helical Railcannon 27178 | -3/Protoforge | Found Faulty Cep. Helical Railcannon 27194 | -3/Protoforge | Found Faulty Cep. Helical Railcannon 27310 | -3/Protoforge | Spotted Decapitator 27310 | -3/Protoforge | Spotted Decapitator 27310 | -3/Protoforge | Spotted Decapitator 27310 | -3/Protoforge | Spotted Decapitator 27328 | -3/Protoforge | Scanned by Researcher 27347 | -3/Protoforge | Found Cep. Hardlight Director 27359 | -3/Protoforge | Found Cep. Projectile Intercept Suite 27502 | -3/Protoforge | Found Exp. Force Field 27504 | -3/Protoforge | Warped through subspace to slip node 27507 | -3/Protoforge | Entered Research 27507 | -2/Research | Evolved 2 slots: Power x1, Utility x1 27770 | -2/Research | Discovered new exit (range 16) 27800 | -2/Research | Build established: Hacker-Tank 27886 | -2/Research | Destroyed 8 combat bots 27930 | -2/Research | Identified exit to Testing 27974 | -2/Research | Entered Testing 27990 | -2/Testing | Found Prototype Energy Gun 27990 | -2/Testing | Identified Tachyon Dispersion Ray 28100 | -2/Testing | Fabricated Exp. Targeting Computer? 28147 | -2/Testing | Found Prototype Device 28148 | -2/Testing | Identified Exp. Thermal Shield 28157 | -2/Testing | Spotted Striker 28159 | -2/Testing | Spotted Striker 28167 | -2/Testing | Found Prototype Device 28168 | -2/Testing | Identified 2N-1CE's Frost Array 28224 | -2/Testing | First assault squad dispatched 28593 | -2/Testing | Discovered new exit (range 9) 28894 | -2/Testing | Found Quantum Capacitor 28914 | -2/Testing | Found Quantum Capacitor 28928 | -2/Testing | Destroyed 7 combat bots 29094 | -2/Testing | Fabricated Exp. Weapon Cycler? 29242 | -2/Testing | Repaired Centrium Medium Armor Plating? 29318 | -2/Testing | Repaired Centrium Medium Armor Plating? 29501 | -2/Testing | Destroyed 9 combat bots 29659 | -2/Testing | Identified exit to Access 29663 | -2/Testing | Entered Access 29663 | -1/Access | Evolved 2 slots: Power x1, Utility x1 29700 | -1/Access | Identified exit to Command 29700 | -1/Access | Cep. Network Penetrator fried by hacking feedback 29738 | -1/Access | Spotted B-99 Colossus 29837 | -1/Access | Unchained authorized (DW-4LL) 29913 | -1/Access | First assault squad dispatched 30005 | -1/Access | Build established: Generator-Gunner 30239 | -1/Access | DW-4LL burst out of a wall 30246 | -1/Access | Garrison activated, responded to threat 30253 | -1/Access | System corruption reached 10% 30274 | -1/Access | Destroyed DW-4LL 30301 | -1/Access | Lost 8 parts (7u1w) 30340 | -1/Access | Found Exp. Weapon Cycler 30342 | -1/Access | Found ID Mask 30350 | -1/Access | Found Prototype Protection 30350 | -1/Access | Identified DW-4LL's Blast Wall 30354 | -1/Access | Destroyed 12 combat bots 30427 | -1/Access | Destroyed 9 combat bots 30537 | -1/Access | Build established: Generator-Tank 30544 | -1/Access | Entered Command 30656 | -1/Command | Spotted B-99 Colossus 30700 | -1/Command | Destroyed B-99 Colossus 31212 | -1/Command | Build established: Generator-Gunner 31286 | -1/Command | Spotted M Guard 31286 | -1/Command | Spotted M Guard 31354 | -1/Command | Spotted Combat Programmer 31357 | -1/Command | Spotted Combat Programmer 31359 | -1/Command | Destroyed Combat Programmer 31376 | -1/Command | System corruption reached 30% 31380 | -1/Command | Destroyed Combat Programmer 31388 | -1/Command | Destroyed M Guard 31404 | -1/Command | Destroyed M Guard 31404 | -1/Command | All MAIN.C guards destroyed 31439 | -1/Command | Found Prototype Protection 31439 | -1/Command | Identified Hvy. Regenerative Plating 31457 | -1/Command | Found Prototype Device 31457 | -1/Command | Identified Thermal Barrier 31472 | -1/Command | Found Zero-point Reactor 31544 | -1/Command | First assault squad dispatched 31724 | -1/Command | Met MAIN.C 31730 | -1/Command | 0b10 Conduit disabled 31770 | -1/Command | Destroyed MAIN.C Shell 31772 | -1/Command | MAIN.C activated Command garrisons 31805 | -1/Command | Destroyed MAIN.C 31844 | -1/Command | Discovered new exit (range 47) 31844 | -1/Command | Discovered new exit (range 106) 31844 | -1/Command | Extracted map data and part IDs from MAIN.C's data core 32235 | -1/Command | Phase Generator disabled 32286 | -1/Command | Spotted B-99 Colossus 32607 | -1/Command | Found Exp. System Purifier 32611 | -1/Command | Found Exp. Force Field 32615 | -1/Command | Found Hvy. Regenerative Plating 32619 | -1/Command | Found Zero-point Reactor 32623 | -1/Command | Found Vortex Chain Reactor 32940 | -1/Command | Found Quantum Capacitor 32950 | -1/Command | Found Quantum Capacitor 33005 | -1/Command | Found Exp. Targeting Computer 33297 | -1/Command | Found Exp. Targeting Computer 33348 | -1/Command | Warped through subspace to slip node 33348 | -1/Command | Discovered new exit (range 4) 33357 | -1/Command | Entered Access_0 33358 | -1/Access_0 | Met Architect 33364 | -1/Access_0 | Architect warped through subspace 33377 | -1/Access_0 | Destroyed A8 33402 | -1/Access_0 | Architect warped through subspace 33426 | -1/Access_0 | Subspace Access Node disabled 33443 | -1/Access_0 | Architect warped through subspace 33466 | -1/Access_0 | Architect warped through subspace 33494 | -1/Access_0 | Architect warped through subspace 33537 | -1/Access_0 | A6 warped into view 33544 | -1/Access_0 | Destroyed A6 33548 | -1/Access_0 | Architect warped through subspace 33562 | -1/Access_0 | Architect warped through subspace 33607 | -1/Access_0 | Architect warped through subspace 33621 | -1/Access_0 | Found Exp. Targeting Computer 33627 | -1/Access_0 | Architect warped through subspace 33631 | -1/Access_0 | Found Corrupted Exp. Phase Shifter 33640 | -1/Access_0 | Subspace Access Node disabled 33646 | -1/Access_0 | Architect warped through subspace 33684 | -1/Access_0 | Architect warped through subspace 33711 | -1/Access_0 | Architect warped through subspace 33735 | -1/Access_0 | Architect warped through subspace 33737 | -1/Access_0 | Found Exp. Targeting Computer 33762 | -1/Access_0 | Architect warped through subspace 33788 | -1/Access_0 | Singularity Gate disabled 33792 | -1/Access_0 | Destroyed A2 33803 | -1/Access_0 | Architect warped through subspace 33809 | -1/Access_0 | Extracted Singularity Gate Test 138-C access codes from A2's data core 33820 | -1/Access_0 | Lost 3 allies 33833 | -1/Access_0 | Architect warped through subspace 33869 | -1/Access_0 | Architect warped through subspace 33891 | -1/Access_0 | Architect warped through subspace 33907 | -1/Access_0 | Architect warped through subspace 33918 | -1/Access_0 | Architect warped through subspace 33939 | -1/Access_0 | Architect warped through subspace 33964 | -1/Access_0 | Subspace Access Node disabled 33987 | -1/Access_0 | Architect warped through subspace 34031 | -1/Access_0 | Architect warped through subspace 34074 | -1/Access_0 | Architect warped through subspace 34121 | -1/Access_0 | Architect warped through subspace 34123 | -1/Access_0 | A5 warped into view 34135 | -1/Access_0 | Destroyed A5 34141 | -1/Access_0 | Architect warped through subspace 34162 | -1/Access_0 | Architect warped through subspace 34188 | -1/Access_0 | Architect warped through subspace 34198 | -1/Access_0 | Architect warped through subspace 34245 | -1/Access_0 | Architect warped through subspace 34245 | -1/Access_0 | Subspace Access Node disabled 34250 | -1/Access_0 | Core integrity fell below 50% 34265 | -1/Access_0 | Destroyed Architect 34276 | -1/Access_0 | Extracted unknown sensor trigger ID from Architect's data core 34278 | -1/Access_0 | Found Alien Energy Gun 34279 | -1/Access_0 | Identified Modified Sigix Sheargun 34283 | -1/Access_0 | Found Exp. Phase Shifter 34290 | -1/Access_0 | Found Prototype Protection 34291 | -1/Access_0 | Identified Centrium Linked Plating 34295 | -1/Access_0 | Found Prototype Hackware 34297 | -1/Access_0 | Found Hpw. Transdimensional Reconstructor 34299 | -1/Access_0 | Found Prototype Hackware 34301 | -1/Access_0 | Identified Architect God Chip D 34304 | -1/Access_0 | Found Architect God Chip D 34305 | -1/Access_0 | Identified Architect God Chip A 34756 | -1/Access_0 | Found Sigix Corpse 34770 | -1/Access_0 | A4 warped into view 34773 | -1/Access_0 | Destroyed A4 35276 | -1/Access_0 | A3 warped into view 35284 | -1/Access_0 | Destroyed A3 35314 | -1/Access_0 | Warped through subspace to slip node 35314 | -1/Access_0 | Discovered new exit (range 8) 35323 | *** | Establishing 0b11! Last Messages --------------- 35276_ Penetrated by HV Slug. 35276_ HV Slug penetrates Wall. 35277_ Plasma Slug penetrates A3. 35278_ Penetrated by HV Slug. 35278_ HV Slug penetrates Earth. 35278_ HV Slug penetrates Wall. 35279_ Plasma Slug penetrates A3. 35281_ Penetrated by HV Slug. 35281_ HV Slug penetrates Earth. 35282_ Plasma Slug penetrates A3. 35284_ A3: "How even..." 35284_ A3 destroyed. 35305_ Dropped Corrupted Prototype Energy Gun. 35305_ Acquired Prototype Energy Gun. 35306_ Identified Lrn. Gatling Laser. 35307_ System corrupted: Energy discharge (-336). 35310_ Acquired 10 matter. 35314_ Warped through subspace, drawn to slip node. 35314_ EXIT=FOUND 35322_ System corrupted: Matter fused (-6). Map ----- +----------------------------------------------------+ | | | | | | | | | | | | | | | | | | | | | | | | | | | | | | | | | ?????????????????????????????????????????????????? | | ?????????????????????????????????????????????????? | | ?????????????????????????????????????????????????? | | ?????????????????????????????????????????????????? | | ?????????????????????????????????????????????????? | | ?????????????????????????????????????????????????? | | ????????????????????????###??????????????????????? | | ???????????????????????## ##?????????????????????? | | ???????????????????????# #?????????????????????? | | ???????????????????????# @ #?????????????????????? | | ??????????????????????## #?????????????????????? | | ??????????????????????# #?????????????????????? | | ??????????????????????# ##?????????????????????? | | ??????????????????????## #?????????????????????? | | ??????????????????????# #?????????????????????? | | ??????????????????????# ##?????????????????????? | | ??????????????????????# < #?????????????????????? | | ??????????????????????# ##?????????????????????? | | ??????????????????????## #??????????????????????? | | ???????????????????????####??????????????????????? | | ?????????????????????????????????????????????????? | | ?????????????????????????????????????????????????? | | ?????????????????????????????????????????????????? | | ?????????????????????????????????????????????????? | | ?????????????????????????????????????????????????? | | ?????????????????????????????????????????????????? | | ?????????????????????????????????????????????????? | | ?????????????????????????????????????????????????? | | ?????????????????????????????????????????????????? | | ?????????????????????????????????????????????????? | | ?????????????????????????????????????????????????? | | ?????????????????????????????????????????????????? | | ?????????????????????????????????????????????????? | | ?????????????????????????????????????????????????? | +----------------------------------------------------+ Best States ------------- Heat Dissipation 170 Coolant Potential 100 Energy Generation 129 Energy Capacity 1640 Matter Stores 300 Matter Capacity 800 Sight Range 16 Robot Scan Range 18 Terrain Scan Range 24 Terrain Scan Density 10 Jamming Range 16 Cloak Strength 9 Power Amplification 30 Base Temperature (-) 200 Armor Coverage 2850 Resistance: EX 75 Propulsion Shielding 90 Weapon Shielding 90 Weapon Cycling 30 Phase Shifting 20 Evasion (%) 75 Targeting Accuracy 36 Core Analysis 16 Recoil Reduction 3 Offensive Hacking 100 Defensive Hacking 20 Item Schematics ----------------- Cmb. Airjet | -7/Factory | Scanalyzed Combat Drone Bay | -7/Data Miner | Free Lgt. Regenerative Plating | -7/Data Miner | Free Cld. Cesium-ion Thruster | -7/Data Miner | Free Exp. Targeting Computer | -7/Data Miner | Free Imp. Lightning Gun | -7/Data Miner | Free Field Propulsion Drive | -7/Data Miner | Free Adv. Recoil Stabilizer | -7/Data Miner | Free KE Penetrator | -7/Data Miner | Free Hvy. Machine Gun | -7/Data Miner | Free Neutrino Core | -7/Data Miner | Free Gatling Laser | -6/Factory | Hacked Adv. Powered Armor | -6/Factory | Scanalyzed Cmb. Gravmag System | -6/Extension | Hacked Lrn. Terrain Scanner | -5/Factory | Scanalyzed Graphene Brace | -5/Factory | Hacked Assault Drone Bay | -5/Zhirov | Free Exp. Heat Sink | -5/Zhirov | Free Exp. Optical Array | -5/Zhirov | Free Imp. Arc Thrower | -5/Zhirov | Free Sml. Laser | -4/Factory | Hacked Adv. Transmission Jammer | -3/Research | Hacked Imp. Cloaking Device | -3/Research | Hacked Cmb. Antigrav System | -3/Research | Hacked Lrn. Sensor Array | -3/Research | Hacked Exp. Core Analyzer | -3/Quarantine | Hacked Cmb. Linear Gravjet | -3/Quarantine | Hacked Exp. Myomer Leg | -3/Protoforge | Archive Imp. Matter Compressor | -3/Protoforge | Archive Exp. Power Amplifier | -3/Protoforge | Archive Adv. Matter Compressor | -3/Protoforge | Archive Prc. Matter Filter | -3/Protoforge | Archive Exp. Energy Well | -2/Testing | Archive Exp. Weapon Cycler | -2/Testing | Scanalyzed Mni. Fusion Reactor | -2/Testing | Archive Enh. Biometal Leg | -2/Testing | Archive Robot Schematics ------------------ L-41 Fighter | -7/Data Miner | Free M-14 Sweeper | -7/Data Miner | Free R-10 Processor | -7/Data Miner | Free G-50 Soldier | -7/Data Miner | Free G-67 Veteran | -3/Protoforge | Archive M-36 Artificer | -3/Protoforge | Archive A-02 Transporter | -3/Protoforge | Archive G-73 Enforcer | -2/Testing | Archive R-06 Scavenger | -2/Testing | Archive Fabricated ------------ Cmb. Airjet | x2 | -7/Factory Exp. Targeting Computer | x1 | -6/Factory Cmb. Gravmag System | x2 | -5/Factory Adv. Transmission Jammer | x2 | -3/Research Lrn. Sensor Array | x2 | -3/Research Exp. Targeting Computer | x1 | -2/Testing Exp. Weapon Cycler | x1 | -2/Testing Repaired ---------- Lgt. Treads | 6% | -10/Materials Lgt. Treads | 30% | -10/Materials Hvy. Assault Rifle | 74% | -9/Materials | Broken Imp. Heat Sink | 85% | -9/Materials | Corrupted Adv. Beam Rifle | 74% | -8/Materials Med. Armor Plating | 73% | -8/Materials Cmb. Airjet | 60% | -7/Factory Enh. Nuclear Core | 11% | -6/Factory | Broken Adv. Powered Armor | 50% | -6/Factory Antigrav Array | 40% | -5/Factory | Broken Centrium Medium Armor Plating | 18% | -3/Research Adv. Cooling System | 46% | -3/Research Cld. Gravmag System | 35% | -3/Research Cmb. Linear Gravjet | 36% | -3/Quarantine Adv. Cooling System | 36% | -3/Quarantine Cmb. Linear Gravjet | 48% | -3/Quarantine Enh. Nova Cannon | 19% | -3/Quarantine Enh. Nova Cannon | 53% | -3/Quarantine | Broken Centrium Medium Armor Plating | 39% | -2/Testing Centrium Medium Armor Plating | 60% | -2/Testing Studied --------- Assault Rifle | -9/Materials | Hacked Lgt. Treads | -9/Materials | Hacked Nuclear Core | -8/Materials | Hacked Imp. Hover Unit | -8/Materials | Hacked Cmb. Airjet | -7/Factory | Hacked Gatling Laser | -6/Factory | Hacked Cmb. Gravmag System | -5/Factory | Hacked Cmb. Linear Gravjet | -3/Quarantine | Hacked Enh. Nova Cannon | -3/Quarantine | Hacked Particle Reactor | -3/Quarantine | Hacked Alien Tech Used ----------------- Core Expander Integrated Dissipator Transdimensional Reconstructor Core Regenerator Integrated Mediator Dimensional Node Initializer Terrabomb Subatomic Replicator High-powered Transdimensional Reconstructor Modified Sigix Sheargun Achievements -------------- DIY Cooler Hackathon Challenges ------------ None Game ------ Seed SpikedCannonCharge Manual? 0 Play Time 06:58:36 Cumulative 2235.7 hours Start 2026.01.20 @ 12:51:40 End 2026.01.21 @ 00:24:03 Sessions 3 Manual Loads 0 Difficulty Rogue Special Mode None Game No. 746 Rogue 746 Adventurer 0 Explorer 0 Win Type 1 Total 170 Types 31/22/65/7/1/2/40/1/1/0 Lore% 97 Gallery% 93 Achievement% 66 Wizard Run 0 Options --------- Layout 0 ASCII 0 Keyboard 0 Movement Numpad Keybinds 0 Fullscreen 2 Font 24/Smallcaps Map View 76x50 Zoom Use 0% Tactical HUD 1 Map Filters NONE Filters NONE Steam 1 RUN: 36d41231-dc90-4d96-a13a-233f5e75ed2d